Workbook

Sheet A1.1 Distributor Information
C3: ="Name of LDC: " &D21 -> Name of LDC: Natural Resource Gas Limited
C4: ="OEB Application Number: " & D23 -> OEB Application Number: EB-2015-0115
C7: Crtl Q to Unlock
C11: Distributor Information
C21: Distributor Name | D21: Natural Resource Gas Limited
C23: OEB Application Number | D23: EB-2015-0115

Sheet B1.1 Current Distribution Rates
C2: ='A1.1 Distributor Information'!C3 -> Name of LDC: Natural Resource Gas Limited
C3: ='A1.1 Distributor Information'!C4 -> OEB Application Number: EB-2015-0115
C10: Current Distribution Tariff Sheet Rates
C15: Rate Group | E15: Monthly Service Charge | F15: Delivery First 1,000 m3 | G15: Delivery Over 1,000 m3 | H15: Delivery Next 24,000 m3 | I15: Delivery Over 25,000 m3 | J15: Delivery - Firm | K15: Demand - Firm | L15: Commodity | M15: Delivery - Int - Lower | N15: Delivery - Int - Upper
C16: RATE 1 - General Service Rate - Residential | E16: 13.5 | F16: 15.9437 | G16: 10.7805 | L16: 0.0363
C17: RATE 1 - General Service Rate - Commercial | E17: 13.5 | F17: 15.9437 | G17: 10.7805 | L17: 0.0363
C18: RATE 1 - General Service Rate - Industrial | E18: 13.5 | F18: 15.9437 | G18: 10.7805 | L18: 0.0363
C19: RATE 2 - Seasonal Service - Apr to Oct | E19: 15 | F19: 15.1677 | H19: 9.4826 | I19: 6.1698 | L19: 0.0363
C20: RATE 2 - Seasonal Service - Nov to Mar | E20: 15 | F20: 19.1187 | H20: 15.696 | I20: 15.2899 | L20: 0.0363
C21: RATE 3 - Special Large Volume Contract Rate | E21: 150 | J21: 3.9431 | K21: 29.0974 | L21: 0.0363 | M21: 7.9412 | N21: 10.9612
C22: RATE 4 - General Service Peaking - Apr to Dec | E22: 15 | F22: 15.4678 | G22: 10.5218 | L22: 0.0363
C23: RATE 4 - General Service Peaking - Jan to Mar | E23: 15 | F23: 19.7327 | G23: 16.9052 | L23: 0.0363
C24: RATE 5 - Interruptible Peaking Contract Rate | E24: 150 | J24: 7.1024 | K24: 1 | L24: 0.0363 | M24: 5.4612 | N24: 8.4612
C25: RATE 6 - Integrated Grain Processors Co-Operative Aylmer Ethanol Production Facility | E25: 150 | J25: 3.8432 | K25: 18.6158 | M25: 7.9412 | N25: 10.9612
C27: 1 Placeholder rate for average application

Sheet B1.2 Billing Determinants
C2: ='A1.1 Distributor Information'!C3 -> Name of LDC: Natural Resource Gas Limited
C3: ='A1.1 Distributor Information'!C4 -> OEB Application Number: EB-2015-0115
C10: Re-Basing Billing Determinants
C15: Rate Group | E15: Monthly Service Charge | F15: Delivery First 1,000 m3 | G15: Delivery Over 1,000 m3 | H15: Delivery Next 24,000 m3 | I15: Delivery Over 25,000 m3 | J15: Delivery - Firm | K15: Demand - Firm | L15: Commodity | M15: Delivery - Int - Lower | N15: Delivery - Int - Upper
C16: RATE 1 - General Service Rate - Residential | E16: 6559.916667 | F16: 12369781 | G16: 733799.7998 | L16: 13103580.8
C17: RATE 1 - General Service Rate - Commercial | E17: 414 | F17: 1760200 | G17: 2371550.008 | L17: 4131750.008
C18: RATE 1 - General Service Rate - Industrial | E18: 42 | F18: 131100 | G18: 466927.6661 | L18: 598027.6661
C19: RATE 2 - Seasonal Service - Apr to Oct | E19: 73 | F19: 123779 | H19: 329621 | I19: 0 | L19: 453400
C20: RATE 2 - Seasonal Service - Nov to Mar | E20: 73 | F20: 5688 | H20: 43772 | I20: 0 | L20: 49460
C21: RATE 3 - Special Large Volume Contract Rate | E21: 4 | J21: 2195299.089 | K21: 256932 | L21: 2195299.089
C22: RATE 4 - General Service Peaking - Apr to Dec | E22: 23 | F22: 215710 | G22: 221214.4449 | L22: 436924.4449
C23: RATE 4 - General Service Peaking - Jan to Mar | E23: 23 | F23: 4368.191919 | G23: 12970 | L23: 17338.19192
C24: RATE 5 - Interruptible Peaking Contract Rate | E24: 5 | J24: 947161.7096 | L24: 947161.7096
C25: RATE 6 - Integrated Grain Processors Co-Operative Aylmer Ethanol Production Facility | E25: 1 | J25: 33416816 | K25: 1298256
E26: =SUM(E16:E19,E21:E22,E24:E25) -> 7121.916667 | F26: =SUM(F16:F25) -> 14610626.19 | G26: 3806461.919 | H26: 373393 | I26: 0 | J26: 36559276.8 | K26: 1555188 | L26: 21932941.91 | M26: =SUM(M16:M25) -> 0 | N26: =SUM(N16:N25) -> 0

Sheet B1.3 Current Rev Req From Rates
C2: ='A1.1 Distributor Information'!C3 -> Name of LDC: Natural Resource Gas Limited
C3: ='A1.1 Distributor Information'!C4 -> OEB Application Number: EB-2015-0115
C10: Revenue Requirement from Rates
C15: Rate Group | E15: Monthly Service Charge | F15: Delivery First 1,000 m3 | G15: Delivery Over 1,000 m3 | H15: Delivery Next 24,000 m3 | I15: Delivery Over 25,000 m3 | J15: Demand - Firm | K15: Delivery - Firm | L15: Commodity | M15: Delivery - Int - Lower | N15: Delivery - Int - Upper | O15: Total
C16: RATE 1 - General Service Rate - Residential | E16: ='B1.1 Current Distribution Rates'!E16*'B1.2 Billing Determinants'!E16*12 -> 1062706.5 | F16: ='B1.1 Current Distribution Rates'!F16*'B1.2 Billing Determinants'!F16/100 -> 1972200.773 | G16: ='B1.1 Current Distribution Rates'!G16*'B1.2 Billing Determinants'!G16/100 -> 79107.28742 | H16: ='B1.1 Current Distribution Rates'!H16*'B1.2 Billing Determinants'!H16/100 -> 0 | I16: ='B1.1 Current Distribution Rates'!I16*'B1.2 Billing Determinants'!I16/100 -> 0 | J16: ='B1.1 Current Distribution Rates'!J16*'B1.2 Billing Determinants'!J16/100 -> 0 | K16: ='B1.1 Current Distribution Rates'!K16*'B1.2 Billing Determinants'!K16/100 -> 0 | L16: ='B1.1 Current Distribution Rates'!L16*'B1.2 Billing Determinants'!L16/100 -> 4756.59983 | M16: ='B1.1 Current Distribution Rates'!M16*'B1.2 Billing Determinants'!M16/100 -> 0 | N16: ='B1.1 Current Distribution Rates'!N16*'B1.2 Billing Determinants'!N16/100 -> 0 | O16: =SUM(E16:N16) -> 3118771.161
C17: RATE 1 - General Service Rate - Commercial | E17: ='B1.1 Current Distribution Rates'!E17*'B1.2 Billing Determinants'!E17*12 -> 67068 | F17: ='B1.1 Current Distribution Rates'!F17*'B1.2 Billing Determinants'!F17/100 -> 280641.0074 | G17: ='B1.1 Current Distribution Rates'!G17*'B1.2 Billing Determinants'!G17/100 -> 255664.9486 | H17: ='B1.1 Current Distribution Rates'!H17*'B1.2 Billing Determinants'!H17/100 -> 0 | I17: ='B1.1 Current Distribution Rates'!I17*'B1.2 Billing Determinants'!I17/100 -> 0 | J17: ='B1.1 Current Distribution Rates'!J17*'B1.2 Billing Determinants'!J17/100 -> 0 | K17: ='B1.1 Current Distribution Rates'!K17*'B1.2 Billing Determinants'!K17/100 -> 0 | L17: ='B1.1 Current Distribution Rates'!L17*'B1.2 Billing Determinants'!L17/100 -> 1499.825253 | M17: ='B1.1 Current Distribution Rates'!M17*'B1.2 Billing Determinants'!M17/100 -> 0 | N17: ='B1.1 Current Distribution Rates'!N17*'B1.2 Billing Determinants'!N17/100 -> 0 | O17: =SUM(E17:N17) -> 604873.7813
C18: RATE 1 - General Service Rate - Industrial | E18: ='B1.1 Current Distribution Rates'!E18*'B1.2 Billing Determinants'!E18*12 -> 6804 | F18: ='B1.1 Current Distribution Rates'!F18*'B1.2 Billing Determinants'!F18/100 -> 20902.1907 | G18: ='B1.1 Current Distribution Rates'!G18*'B1.2 Billing Determinants'!G18/100 -> 50337.13704 | H18: ='B1.1 Current Distribution Rates'!H18*'B1.2 Billing Determinants'!H18/100 -> 0 | I18: ='B1.1 Current Distribution Rates'!I18*'B1.2 Billing Determinants'!I18/100 -> 0 | J18: ='B1.1 Current Distribution Rates'!J18*'B1.2 Billing Determinants'!J18/100 -> 0 | K18: ='B1.1 Current Distribution Rates'!K18*'B1.2 Billing Determinants'!K18/100 -> 0 | L18: ='B1.1 Current Distribution Rates'!L18*'B1.2 Billing Determinants'!L18/100 -> 217.0840428 | M18: ='B1.1 Current Distribution Rates'!M18*'B1.2 Billing Determinants'!M18/100 -> 0 | N18: ='B1.1 Current Distribution Rates'!N18*'B1.2 Billing Determinants'!N18/100 -> 0 | O18: 78260.41178
C19: RATE 2 - Seasonal Service - Apr to Oct | E19: ='B1.1 Current Distribution Rates'!E19*'B1.2 Billing Determinants'!E19*7 -> 7665 | F19: ='B1.1 Current Distribution Rates'!F19*'B1.2 Billing Determinants'!F19/100 -> 18774.42738 | G19: ='B1.1 Current Distribution Rates'!G19*'B1.2 Billing Determinants'!G19/100 -> 0 | H19: ='B1.1 Current Distribution Rates'!H19*'B1.2 Billing Determinants'!H19/100 -> 31256.64095 | I19: ='B1.1 Current Distribution Rates'!I19*'B1.2 Billing Determinants'!I19/100 -> 0 | J19: ='B1.1 Current Distribution Rates'!J19*'B1.2 Billing Determinants'!J19/100 -> 0 | K19: ='B1.1 Current Distribution Rates'!K19*'B1.2 Billing Determinants'!K19/100 -> 0 | L19: ='B1.1 Current Distribution Rates'!L19*'B1.2 Billing Determinants'!L19/100 -> 164.5842 | M19: ='B1.1 Current Distribution Rates'!M19*'B1.2 Billing Determinants'!M19/100 -> 0 | N19: ='B1.1 Current Distribution Rates'!N19*'B1.2 Billing Determinants'!N19/100 -> 0 | O19: 57860.65253
C20: RATE 2 - Seasonal Service - Nov to Mar | E20: ='B1.1 Current Distribution Rates'!E20*'B1.2 Billing Determinants'!E20*5 -> 5475 | F20: ='B1.1 Current Distribution Rates'!F20*'B1.2 Billing Determinants'!F20/100 -> 1087.471656 | G20: ='B1.1 Current Distribution Rates'!G20*'B1.2 Billing Determinants'!G20/100 -> 0 | H20: ='B1.1 Current Distribution Rates'!H20*'B1.2 Billing Determinants'!H20/100 -> 6870.45312 | I20: ='B1.1 Current Distribution Rates'!I20*'B1.2 Billing Determinants'!I20/100 -> 0 | J20: ='B1.1 Current Distribution Rates'!J20*'B1.2 Billing Determinants'!J20/100 -> 0 | K20: ='B1.1 Current Distribution Rates'!K20*'B1.2 Billing Determinants'!K20/100 -> 0 | L20: ='B1.1 Current Distribution Rates'!L20*'B1.2 Billing Determinants'!L20/100 -> 17.95398 | M20: ='B1.1 Current Distribution Rates'!M20*'B1.2 Billing Determinants'!M20/100 -> 0 | N20: ='B1.1 Current Distribution Rates'!N20*'B1.2 Billing Determinants'!N20/100 -> 0 | O20: 13450.87876
C21: RATE 3 - Special Large Volume Contract Rate | E21: ='B1.1 Current Distribution Rates'!E21*'B1.2 Billing Determinants'!E21*12 -> 7200 | F21: ='B1.1 Current Distribution Rates'!F21*'B1.2 Billing Determinants'!F21/100 -> 0 | G21: ='B1.1 Current Distribution Rates'!G21*'B1.2 Billing Determinants'!G21/100 -> 0 | H21: ='B1.1 Current Distribution Rates'!H21*'B1.2 Billing Determinants'!H21/100 -> 0 | I21: ='B1.1 Current Distribution Rates'!I21*'B1.2 Billing Determinants'!I21/100 -> 0 | J21: ='B1.1 Current Distribution Rates'!J21*'B1.2 Billing Determinants'!J21/100 -> 86562.83839 | K21: ='B1.1 Current Distribution Rates'!K21*'B1.2 Billing Determinants'!K21/100 -> 74760.53177 | L21: ='B1.1 Current Distribution Rates'!L21*'B1.2 Billing Determinants'!L21/100 -> 796.8935694 | M21: ='B1.1 Current Distribution Rates'!M21*'B1.2 Billing Determinants'!M21/100 -> 0 | N21: ='B1.1 Current Distribution Rates'!N21*'B1.2 Billing Determinants'!N21/100 -> 0 | O21: 169320.2637
C22: RATE 4 - General Service Peaking - Apr to Dec | E22: ='B1.1 Current Distribution Rates'!E22*'B1.2 Billing Determinants'!E22*9 -> 3105 | F22: ='B1.1 Current Distribution Rates'!F22*'B1.2 Billing Determinants'!F22/100 -> 33365.59138 | G22: ='B1.1 Current Distribution Rates'!G22*'B1.2 Billing Determinants'!G22/100 -> 23275.74146 | H22: ='B1.1 Current Distribution Rates'!H22*'B1.2 Billing Determinants'!H22/100 -> 0 | I22: ='B1.1 Current Distribution Rates'!I22*'B1.2 Billing Determinants'!I22/100 -> 0 | J22: ='B1.1 Current Distribution Rates'!J22*'B1.2 Billing Determinants'!J22/100 -> 0 | K22: ='B1.1 Current Distribution Rates'!K22*'B1.2 Billing Determinants'!K22/100 -> 0 | L22: ='B1.1 Current Distribution Rates'!L22*'B1.2 Billing Determinants'!L22/100 -> 158.6035735 | M22: ='B1.1 Current Distribution Rates'!M22*'B1.2 Billing Determinants'!M22/100 -> 0 | N22: ='B1.1 Current Distribution Rates'!N22*'B1.2 Billing Determinants'!N22/100 -> 0 | O22: 59904.93642
C23: RATE 4 - General Service Peaking - Jan to Mar | E23: ='B1.1 Current Distribution Rates'!E23*'B1.2 Billing Determinants'!E23*3 -> 1035 | F23: ='B1.1 Current Distribution Rates'!F23*'B1.2 Billing Determinants'!F23/100 -> 861.9622068 | G23: ='B1.1 Current Distribution Rates'!G23*'B1.2 Billing Determinants'!G23/100 -> 2192.60444 | H23: ='B1.1 Current Distribution Rates'!H23*'B1.2 Billing Determinants'!H23/100 -> 0 | I23: ='B1.1 Current Distribution Rates'!I23*'B1.2 Billing Determinants'!I23/100 -> 0 | J23: ='B1.1 Current Distribution Rates'!J23*'B1.2 Billing Determinants'!J23/100 -> 0 | K23: ='B1.1 Current Distribution Rates'!K23*'B1.2 Billing Determinants'!K23/100 -> 0 | L23: ='B1.1 Current Distribution Rates'!L23*'B1.2 Billing Determinants'!L23/100 -> 6.293763667 | M23: ='B1.1 Current Distribution Rates'!M23*'B1.2 Billing Determinants'!M23/100 -> 0 | N23: ='B1.1 Current Distribution Rates'!N23*'B1.2 Billing Determinants'!N23/100 -> 0 | O23: 4095.860411
C24: RATE 5 - Interruptible Peaking Contract Rate | E24: ='B1.1 Current Distribution Rates'!E24*'B1.2 Billing Determinants'!E24*12 -> 9000 | F24: ='B1.1 Current Distribution Rates'!F24*'B1.2 Billing Determinants'!F24/100 -> 0 | G24: ='B1.1 Current Distribution Rates'!G24*'B1.2 Billing Determinants'!G24/100 -> 0 | H24: ='B1.1 Current Distribution Rates'!H24*'B1.2 Billing Determinants'!H24/100 -> 0 | I24: ='B1.1 Current Distribution Rates'!I24*'B1.2 Billing Determinants'!I24/100 -> 0 | J24: ='B1.1 Current Distribution Rates'!J24*'B1.2 Billing Determinants'!J24/100 -> 67271.21326 | K24: ='B1.1 Current Distribution Rates'!K24*'B1.2 Billing Determinants'!K24/100 -> 0 | L24: ='B1.1 Current Distribution Rates'!L24*'B1.2 Billing Determinants'!L24/100 -> 343.8197006 | M24: ='B1.1 Current Distribution Rates'!M24*'B1.2 Billing Determinants'!M24/100 -> 0 | N24: ='B1.1 Current Distribution Rates'!N24*'B1.2 Billing Determinants'!N24/100 -> 0 | O24: 76615.03297
C25: RATE 6 - Integrated Grain Processors Co-Operative Aylmer Ethanol Production Facility | E25: ='B1.1 Current Distribution Rates'!E25*'B1.2 Billing Determinants'!E25*12 -> 1800 | F25: ='B1.1 Current Distribution Rates'!F25*'B1.2 Billing Determinants'!F25/100 -> 0 | G25: ='B1.1 Current Distribution Rates'!G25*'B1.2 Billing Determinants'!G25/100 -> 0 | H25: ='B1.1 Current Distribution Rates'!H25*'B1.2 Billing Determinants'!H25/100 -> 0 | I25: ='B1.1 Current Distribution Rates'!I25*'B1.2 Billing Determinants'!I25/100 -> 0 | J25: ='B1.1 Current Distribution Rates'!J25*'B1.2 Billing Determinants'!J25/100 -> 1284275.073 | K25: ='B1.1 Current Distribution Rates'!K25*'B1.2 Billing Determinants'!K25/100 -> 241680.7404 | L25: ='B1.1 Current Distribution Rates'!L25*'B1.2 Billing Determinants'!L25/100 -> 0 | M25: ='B1.1 Current Distribution Rates'!M25*'B1.2 Billing Determinants'!M25/100 -> 0 | N25: ='B1.1 Current Distribution Rates'!N25*'B1.2 Billing Determinants'!N25/100 -> 0 | O25: 1527755.813
E26: =SUM(E16:E25) -> 1171858.5 | F26: =SUM(F16:F25) -> 2327833.424 | G26: 410577.719 | H26: 38127.09407 | I26: 0 | J26: 1438109.124 | K26: 316441.2722 | L26: 7961.657913 | M26: 0 | N26: 0 | O26: 5710908.791

Sheet C1.1 Current Rate Riders
C2: ='A1.1 Distributor Information'!C3 -> Name of LDC: Natural Resource Gas Limited
C3: ='A1.1 Distributor Information'!C4 -> OEB Application Number: EB-2015-0115
C10: Current Rate Riders
C12: Description | E12: Shared Tax Changes
C13: Effective Until | E13: September 30, 2015
E14: per customer per month assuming all months
C15: Rate Group
C16: RATE 1 - General Service Rate - Residential | E16: -0.11
C17: RATE 1 - General Service Rate - Commercial | E17: -0.11
C18: RATE 1 - General Service Rate - Industrial | E18: -0.11
C19: RATE 2 - Seasonal Service - Apr to Oct | E19: -0.19
C20: RATE 2 - Seasonal Service - Nov to Mar | E20: -0.19
C21: RATE 3 - Special Large Volume Contract Rate | E21: -8.34
C22: RATE 4 - General Service Peaking - Apr to Dec | E22: -0.55
C23: RATE 4 - General Service Peaking - Jan to Mar | E23: -0.55
C24: RATE 5 - Interruptible Peaking Contract Rate | E24: -3.02
C25: RATE 6 - Integrated Grain Processors Co-Operative Aylmer Ethanol Production Facility | E25: -301.13

Sheet C2.1 Regulatory Cost Adjustment (hidden)
C1: ='A1.1 Distributor Information'!#REF! -> 
C2: ='A1.1 Distributor Information'!C3 -> Name of LDC: Natural Resource Gas Limited
C3: ='A1.1 Distributor Information'!C4 -> OEB Application Number: EB-2015-0115
C8: Regulatory Cost Adjustment
C9: Annual Regulatory Adjustment
C10: 22800 | D10: for 3 years | E10: =C10*3 -> 68400 | F10: Total to be collected
C11: A | E11: B= A * 3
C13: =E10 -> 68400 | D13: recovered over 33 months | E13: =C13/33 -> 2072.727273 | F13: per month
C14: B | E14: C = B / 33
C16: =E13 -> 2072.727273 | D16: Monthly charge annualized 12 months | E16: =C16*12 -> 24872.72727 | F16: Adjusted Regulatory Adjustment Value
C17: C | E17: D = C * 12
C19: Proposed recovery
C20: =E16 -> 24872.72727 | D20: Recovered over 9 months | E20: =C20/12*9 -> 18654.54545 | F20: Recovered in 2011/2012
C21: =C20 -> 24872.72727 | D21: Recovered over 12 months | E21: =C21 -> 24872.72727 | F21: Recovered in 2012/2013
C22: =C21 -> 24872.72727 | D22: Recovered over 12 months | E22: =C22 -> 24872.72727 | F22: Recovered in 2013/2014
E23: =SUM(E20:E22) -> 68400

Sheet C2.2 Alloc Reg Cost Adj (hidden)
C1: ='A1.1 Distributor Information'!#REF! -> 
C2: ='A1.1 Distributor Information'!C3 -> Name of LDC: Natural Resource Gas Limited
C3: ='A1.1 Distributor Information'!C4 -> OEB Application Number: EB-2015-0115
C10: Allocation of Regualtory Cost Adjustment
C15: Rate Group | E15: Revenue By Rate Class | G15: Proportionate Revenue | I15: Regulatory Cost Adjustment | K15: Number of Customers | M15: Number of Months | O15: Fixed Rate Adjustment
C16: RATE 1 - General Service Rate | E16: =SUM('B1.3 Current Rev Req From Rates'!O16:O18) -> 3801905.354 | G16: =E16/$E$22 -> 0.6657268558 | I16: =$I$22*G16 -> 16558.44252 | K16: =SUM('B1.2 Billing Determinants'!E16:E18) -> 7015.916667 | M16: 12 | O16: =I16/K16/M16 -> 0.1966771095
C17: RATE 2 - Seasonal Service | E17: =SUM('B1.3 Current Rev Req From Rates'!O19:O20) -> 71311.53129 | G17: 0.01248689725 | I17: 310.5831898 | K17: ='B1.2 Billing Determinants'!E19 -> 73 | M17: 12 | O17: =I17/K17/M17 -> 0.3545470203
C18: RATE 3 - Special Large Volume Contract Rate | E18: ='B1.3 Current Rev Req From Rates'!O21 -> 169320.2637 | G18: 0.02964856731 | I18: 737.4407288 | K18: ='B1.2 Billing Determinants'!E21 -> 4 | M18: 12 | O18: 15.36334852
C19: RATE 4 - General Service Peaking | E19: =SUM('B1.3 Current Rev Req From Rates'!O22:O23) -> 64000.79683 | G19: 0.01120676221 | I19: 278.7427401 | K19: ='B1.2 Billing Determinants'!E22 -> 23 | M19: 12 | O19: 1.009937464
C20: RATE 5 - Interruptible Peaking Contract Rate | E20: ='B1.3 Current Rev Req From Rates'!O24 -> 76615.03297 | G20: 0.01341555885 | I20: 333.6815364 | K20: ='B1.2 Billing Determinants'!E24 -> 5 | M20: 12 | O20: 5.561358941
C21: RATE 6 - Integrated Grain Processors Co-Operative Aylmer Ethanol Production Facility | E21: ='B1.3 Current Rev Req From Rates'!O25 -> 1527755.813 | G21: 0.2675153585 | I21: 6653.836554 | K21: ='B1.2 Billing Determinants'!E25 -> 1 | M21: 12 | O21: 554.4863795
E22: =SUM(E16:E21) -> 5710908.791 | G22: =SUM(G16:G21) -> 1 | I22: ='C2.1 Regulatory Cost Adjustment'!E16 -> 24872.72727 | K22: =SUM(K16:K21) -> 7121.916667

Sheet C2.3 Adj Monthly Service Chg (hidden)
C1: ='A1.1 Distributor Information'!#REF! -> 
C2: ='A1.1 Distributor Information'!C3 -> Name of LDC: Natural Resource Gas Limited
C3: ='A1.1 Distributor Information'!C4 -> OEB Application Number: EB-2015-0115
C10: Adjustment to Monthly Service Charge
C15: Rate Group | E15: Current Monthly Service Charge | G15: Reulatory Cost Adjustment | I15: Adjusted Monthly Service Charge
C16: RATE 1 - General Service Rate - Residential | E16: 13.5 | G16: 0 | I16: =E16+G16 -> 13.5
C17: RATE 1 - General Service Rate - Commercial | E17: 13.5 | G17: 0 | I17: =E17+G17 -> 13.5
C18: RATE 1 - General Service Rate - Industrial | E18: 13.5 | G18: 0 | I18: 13.5
C19: RATE 2 - Seasonal Service - Apr to Oct | E19: 15 | G19: 0 | I19: 15
C20: RATE 2 - Seasonal Service - Nov to Mar | E20: 15 | G20: 0 | I20: 15
C21: RATE 3 - Special Large Volume Contract Rate | E21: 150 | G21: 0 | I21: 150
C22: RATE 4 - General Service Peaking - Apr to Dec | E22: 15 | G22: 0 | I22: 15
C23: RATE 4 - General Service Peaking - Jan to Mar | E23: 15 | G23: 0 | I23: 15
C24: RATE 5 - Interruptible Peaking Contract Rate | E24: 150 | G24: 0 | I24: 150
C25: RATE 6 - Integrated Grain Processors Co-Operative Aylmer Ethanol Production Facility | E25: 150 | G25: 0 | I25: 150
C28: 1 Placeholder rate for average application

Sheet D1.1 Rate 1 Adjustment
C2: ='A1.1 Distributor Information'!C3 -> Name of LDC: Natural Resource Gas Limited
C3: ='A1.1 Distributor Information'!C4 -> OEB Application Number: EB-2015-0115
C8: Rate 1 Price Cap Adjustment
C11: GDP-IPI | E11: =E24 -> 0.016
C12: Less Productivity | E12: 0
C13: Less Stretch Factor | E13: =I27 -> 0.004
C14: Price Cap Adjustment | E14: =E11-E12-E13 -> 0.012
E16: Current Rate | F16: Price Cap | G16: Adjusted Rates | H16: Billing Determinants | I16: Revenue Requirement | K16: Balanced Rates | L16: Revenue Requirement
C17: Monthly Service Charge | E17: ='C2.3 Adj Monthly Service Chg'!I16 -> 13.5 | F17: =E14 -> 0.012 | G17: =E17*(1+F17) -> 13.662 | H17: =SUM('B1.2 Billing Determinants'!E16:E18) -> 7015.916667 | I17: =G17*H17*12 -> 1150217.442 | J17: No Change | K17: =E17+H11 -> 13.5 | L17: =H17*K17*12 -> 1136578.5
C18: Delivery First 1,000 m3 | E18: ='B1.1 Current Distribution Rates'!F16 -> 15.9437 | F18: =E14 -> 0.012 | G18: =E18*(1+F18) -> 16.1350244 | H18: =SUM('B1.2 Billing Determinants'!F16:F18) -> 14261081 | I18: =G18*H18/100 -> 2301028.899 | J18: Re-Balance | K18: =L18/H18*100 -> 16.23120662 | L18: =($I$21-SUM($L$17,$L$20,$L$19)) -> 2314745.523
C19: Delivery Over 1,000 m3 | E19: ='B1.1 Current Distribution Rates'!G16 -> 10.7805 | F19: =E14 -> 0.012 | G19: 10.909866 | H19: =SUM('B1.2 Billing Determinants'!G16:G18) -> 3572277.474 | I19: =G19*H19/100 -> 389730.6855 | J19: Change | K19: =G19 -> 10.909866 | L19: =H19*K19/100 -> 389730.6855
C20: Commodity | E20: ='B1.1 Current Distribution Rates'!L16 -> 0.0363 | F20: =E14 -> 0.012 | G20: 0.0367356 | H20: =SUM('B1.2 Billing Determinants'!L16:L18) -> 17833358.47 | I20: 6551.191235 | J20: No Change | K20: =E20 -> 0.0363 | L20: =H20*K20/100 -> 6473.509126
I21: =SUM(I17:I20) -> 3847528.218 | L21: =SUM(L17:L20) -> 3847528.218
C23: Data from 2014 IRM Rate Generator for Electric LDC. | L23: =I21-L21 -> 0
C24: Price Escalator | E24: 0.016 | F24: Choose Stretch Factor Group | I24: III | J24: Mid Group
C25: Productivity Factor | E25: 0 | F25: Associated Stretch Factor Value | I25: 0.003
C26: Price Cap Index | E26: =E24-E25-I27 -> 0.012 | F26: Settlement Agreement Adjustment | I26: 0.001
F27: Total Stretch Factor | I27: =SUM(I25:I26) -> 0.004

Sheet D1.2 Rate 2 Adjustment
C2: ='A1.1 Distributor Information'!C3 -> Name of LDC: Natural Resource Gas Limited
C3: ='A1.1 Distributor Information'!C4 -> OEB Application Number: EB-2015-0115
C8: Rate 2 Price Cap Adjustment
C11: GDP-IPI | E11: ='D1.1 Rate 1 Adjustment'!E11 -> 0.016
C12: Less Productivity | E12: ='D1.1 Rate 1 Adjustment'!E12 -> 0
C13: Less Stretch Factor | E13: ='D1.1 Rate 1 Adjustment'!E13 -> 0.004
C14: Price Cap Adjustment | E14: =E11-E12-E13 -> 0.012
E16: Current Rate | F16: Price Cap | G16: Adjusted Rates | H16: Billing Determinants | I16: Revenue Requirement | K16: Balanced Rates | L16: Revenue Requirement
C17: Monthly Service Charge | E17: ='C2.3 Adj Monthly Service Chg'!I19 -> 15 | F17: =$E$14 -> 0.012 | G17: =E17*(1+F17) -> 15.18 | H17: ='B1.2 Billing Determinants'!E19 -> 73 | I17: =G17*H17*12 -> 13297.68 | J17: No Change | K17: =E17+H11 -> 15 | L17: =H17*K17*12 -> 13140
C18: Delivery First 1,000 m3 - Apr To Oct | E18: ='B1.1 Current Distribution Rates'!F19 -> 15.1677 | F18: =$E$14 -> 0.012 | G18: =E18*(1+F18) -> 15.3497124 | H18: ='B1.2 Billing Determinants'!F19 -> 123779 | I18: =G18*H18/100 -> 18999.72051 | J18: Re-Balance | K18: =L18/H18*100 -> 15.82119154 | L18: =(I18/($I$18+$I$21))*(I25-SUM(L17,L19:L20,L22:L24)) -> 19583.31267
C19: Delivery Next 24,000 m3 - Apr To Oct | E19: ='B1.1 Current Distribution Rates'!H19 -> 9.4826 | F19: 0.012 | G19: 9.5963912 | H19: ='B1.2 Billing Determinants'!H19 -> 329621 | I19: =G19*H19/100 -> 31631.72064 | J19: No Change | K19: =E19 -> 9.4826 | L19: =H19*K19/100 -> 31256.64095
C20: Delivery Over 25,000 m3 - Apr To Oct | E20: ='B1.1 Current Distribution Rates'!I19 -> 6.1698 | F20: 0.012 | G20: 6.2438376 | H20: ='B1.2 Billing Determinants'!I19 -> 0 | I20: 0 | J20: No Change | K20: =E20 -> 6.1698 | L20: 0
C21: Delivery First 1,000 m3 - Nov To Mar | E21: ='B1.1 Current Distribution Rates'!F20 -> 19.1187 | F21: 0.012 | G21: 19.3481244 | H21: ='B1.2 Billing Determinants'!F20 -> 5688 | I21: 1100.521316 | J21: Re-Balance | K21: =L21/H21*100 -> 19.94241808 | L21: =(I21/($I$18+$I$21))*(I25-SUM(L17,L19:L20,L22:L24)) -> 1134.32474
C22: Delivery Next 24,000 m3 - Nov To Mar | E22: ='B1.1 Current Distribution Rates'!H20 -> 15.696 | F22: 0.012 | G22: 15.884352 | H22: ='B1.2 Billing Determinants'!H20 -> 43772 | I22: 6952.898557 | J22: No Change | K22: =E22 -> 15.696 | L22: =H22*K22/100 -> 6870.45312
C23: Delivery Over 25,000 m3 - Nov To Mar | E23: ='B1.1 Current Distribution Rates'!I20 -> 15.2899 | F23: 0.012 | G23: 15.4733788 | H23: ='B1.2 Billing Determinants'!I20 -> 0 | I23: 0 | J23: No Change | K23: =E23 -> 15.2899 | L23: 0
C24: Commodity | E24: ='B1.1 Current Distribution Rates'!L19 -> 0.0363 | F24: 0.012 | G24: 0.0367356 | H24: =SUM('B1.2 Billing Determinants'!L19:L20) -> 502860 | I24: 184.7286382 | J24: No Change | K24: 0.0363 | L24: 182.53818
I25: =SUM(I17:I24) -> 72167.26966 | L25: =SUM(L17:L24) -> 72167.26966
L26: =I25-L25 -> 0

Sheet D1.3 Rate 3 Adjustment
C2: ='A1.1 Distributor Information'!C3 -> Name of LDC: Natural Resource Gas Limited
C3: ='A1.1 Distributor Information'!C4 -> OEB Application Number: EB-2015-0115
C8: Rate 3 Price Cap Adjustment
C11: GDP-IPI | E11: ='D1.1 Rate 1 Adjustment'!E11 -> 0.016
C12: Less Productivity | E12: ='D1.1 Rate 1 Adjustment'!E12 -> 0
C13: Less Stretch Factor | E13: ='D1.1 Rate 1 Adjustment'!E13 -> 0.004
C14: Price Cap Adjustment | E14: =E11-E12-E13 -> 0.012
E16: Current Rate | F16: Price Cap | G16: Adjusted Rates | H16: Billing Determinants | I16: Revenue Requirement | K16: Balanced Rates | L16: Revenue Requirement
C17: Monthly Service Charge | E17: ='C2.3 Adj Monthly Service Chg'!I21 -> 150 | F17: =E14 -> 0.012 | G17: =E17*(1+F17) -> 151.8 | H17: ='B1.2 Billing Determinants'!E21 -> 4 | I17: =G17*H17*12 -> 7286.4 | J17: No Change | K17: =E17+H11 -> 150 | L17: =H17*K17*12 -> 7200
C18: Delivery Firm | E18: ='B1.1 Current Distribution Rates'!J21 -> 3.9431 | F18: =E14 -> 0.012 | G18: =E18*(1+F18) -> 3.9904172 | H18: ='B1.2 Billing Determinants'!J21 -> 2195299.089 | I18: =G18*H18/100 -> 87601.59245 | J18: Re-Balance | K18: =L18/H18*100 -> 4.035654275 | L18: =I21-(L17+L19+L20) -> 88594.68156
C19: Demand Firm | E19: ='B1.1 Current Distribution Rates'!K21 -> 29.0974 | F19: =E14 -> 0.012 | G19: 29.4465688 | H19: ='B1.2 Billing Determinants'!K21 -> 256932 | I19: =G19*H19/100 -> 75657.65815 | J19: No Change | K19: 29.0974 | L19: =H19*K19/100 -> 74760.53177
C20: Commodity | E20: ='B1.1 Current Distribution Rates'!L21 -> 0.0363 | F20: =E14 -> 0.012 | G20: 0.0367356 | H20: ='B1.2 Billing Determinants'!L21 -> 2195299.089 | I20: 806.4562923 | J20: No Change | K20: =E20 -> 0.0363 | L20: =H20*K20/100 -> 796.8935694
I21: =SUM(I17:I20) -> 171352.1069 | L21: =SUM(L17:L20) -> 171352.1069
L22: =I21-L21 -> 0

Sheet D1.4 Rate 4 Adjustment
C2: ='A1.1 Distributor Information'!C3 -> Name of LDC: Natural Resource Gas Limited
C3: ='A1.1 Distributor Information'!C4 -> OEB Application Number: EB-2015-0115
C8: Rate 4 Price Cap Adjustment
C11: GDP-IPI | E11: ='D1.1 Rate 1 Adjustment'!E11 -> 0.016
C12: Less Productivity | E12: ='D1.1 Rate 1 Adjustment'!E12 -> 0
C13: Less Stretch Factor | E13: ='D1.1 Rate 1 Adjustment'!E13 -> 0.004
C14: Price Cap Adjustment | E14: =E11-E12-E13 -> 0.012
E16: Current Rate | F16: Price Cap | G16: Adjusted Rates | H16: Billing Determinants | I16: Revenue Requirement | K16: Balanced Rates | L16: Revenue Requirement
C17: Monthly Service Charge | E17: ='C2.3 Adj Monthly Service Chg'!I22 -> 15 | F17: =$E$14 -> 0.012 | G17: =E17*(1+F17) -> 15.18 | H17: ='B1.2 Billing Determinants'!E22 -> 23 | I17: =G17*H17*12 -> 4189.68 | J17: No Change | K17: =E17+H11 -> 15 | L17: =H17*K17*12 -> 4140
C18: Delivery First 1,000 m3 - Apr To Dec | E18: ='B1.1 Current Distribution Rates'!F22 -> 15.4678 | F18: =$E$14 -> 0.012 | G18: =E18*(1+F18) -> 15.6534136 | H18: ='B1.2 Billing Determinants'!F22 -> 215710 | I18: =G18*H18/100 -> 33765.97848 | J18: Re-Balance | K18: =L18/H18*100 -> 15.81487179 | L18: =(I18/($I$18+$I$20))*($I$23-SUM($L$17,$L$19,$L$21:$L$22)) -> 34114.25994
C19: Delivery Over 1,000 m3 - Apr To Dec | E19: ='B1.1 Current Distribution Rates'!G22 -> 10.5218 | F19: 0.012 | G19: 10.6480616 | H19: ='B1.2 Billing Determinants'!G22 -> 221214.4449 | I19: =G19*H19/100 -> 23555.05036 | J19: No Change | K19: 10.5218 | L19: =H19*K19/100 -> 23275.74146
C20: Delivery First 1,000 m3 - Jan To Mar | E20: ='B1.1 Current Distribution Rates'!F23 -> 19.7327 | F20: 0.012 | G20: 19.9694924 | H20: ='B1.2 Billing Determinants'!F23 -> 4368.191919 | I20: 872.3057533 | J20: Re-Balance | K20: =L20/H20*100 -> 20.17546908 | L20: =(I20/($I$18+$I$20))*($I$23-SUM($L$17,$L$19,$L$21:$L$22)) -> 881.3032098
C21: Delivery Over 1,000 m3 - Jan To Mar | E21: ='B1.1 Current Distribution Rates'!G23 -> 16.9052 | F21: 0.012 | G21: 17.1080624 | H21: ='B1.2 Billing Determinants'!G23 -> 12970 | I21: 2218.915693 | J21: No Change | K21: 16.9052 | L21: =H21*K21/100 -> 2192.60444
C22: Commodity | E22: ='B1.1 Current Distribution Rates'!L22 -> 0.0363 | F22: 0.012 | G22: 0.0367356 | H22: =SUM('B1.2 Billing Determinants'!L22:L23) -> 454262.6368 | I22: 166.8761052 | J22: No Change | K22: =E22 -> 0.0363 | L22: 164.8973372
I23: =SUM(I17:I22) -> 64768.80639 | L23: =SUM(L17:L22) -> 64768.80639
L24: =I23-L23 -> 0

Sheet D1.5 Rate 5 Adjustment
C2: ='A1.1 Distributor Information'!C3 -> Name of LDC: Natural Resource Gas Limited
C3: ='A1.1 Distributor Information'!C4 -> OEB Application Number: EB-2015-0115
C8: Rate 5 Price Cap Adjustment
C11: GDP-IPI | E11: ='D1.1 Rate 1 Adjustment'!E11 -> 0.016
C12: Less Productivity | E12: ='D1.1 Rate 1 Adjustment'!E12 -> 0
C13: Less Stretch Factor | E13: ='D1.1 Rate 1 Adjustment'!E13 -> 0.004
C14: Price Cap Adjustment | E14: =E11-E12-E13 -> 0.012
E16: Current Rate | F16: Price Cap | G16: Adjusted Rates | H16: Billing Determinants | I16: Revenue Requirement | K16: Balanced Rates | L16: Revenue Requirement
C17: Monthly Service Charge | E17: ='C2.3 Adj Monthly Service Chg'!I24 -> 150 | F17: =E14 -> 0.012 | G17: =E17*(1+F17) -> 151.8 | H17: ='B1.2 Billing Determinants'!E24 -> 5 | I17: =G17*H17*12 -> 9108 | J17: No Change | K17: =E17+H11 -> 150 | L17: =H17*K17*12 -> 9000
C18: Delivery Firm | E18: ='B1.1 Current Distribution Rates'!J24 -> 7.1024 | F18: =E14 -> 0.012 | G18: =E18*(1+F18) -> 7.1876288 | H18: ='B1.2 Billing Determinants'!J24 -> 947161.7096 | I18: =G18*H18/100 -> 68078.46782 | J18: Re-Balance | K18: =L18/H18*100 -> 7.199466888 | L18: =I20-L17-L19 -> 68190.59366
C19: Commodity | E19: ='B1.1 Current Distribution Rates'!L24 -> 0.0363 | F19: =E14 -> 0.012 | G19: 0.0367356 | H19: ='B1.2 Billing Determinants'!L24 -> 947161.7096 | I19: =G19*H19/100 -> 347.945537 | J19: No Change | K19: =E19 -> 0.0363 | L19: =H19*K19/100 -> 343.8197006
I20: =SUM(I17:I19) -> 77534.41336 | L20: =SUM(L17:L19) -> 77534.41336
L21: =I20-L20 -> 0

Sheet D1.6 Rate 6 Adjustment
C2: ='A1.1 Distributor Information'!C3 -> Name of LDC: Natural Resource Gas Limited
C3: ='A1.1 Distributor Information'!C4 -> OEB Application Number: EB-2015-0115
C8: Rate 6 Price Cap Adjustment
C11: GDP-IPI | E11: ='D1.1 Rate 1 Adjustment'!E11 -> 0.016
C12: Less Productivity | E12: ='D1.1 Rate 1 Adjustment'!E12 -> 0
C13: Less Stretch Factor | E13: ='D1.1 Rate 1 Adjustment'!E13 -> 0.004
C14: Price Cap Adjustment | E14: =E11-E12-E13 -> 0.012
E16: Current Rate | F16: Price Cap | G16: Adjusted Rates | H16: Billing Determinants | I16: Revenue Requirement | K16: Balanced Rates | L16: Revenue Requirement
C17: Monthly Service Charge | E17: ='C2.3 Adj Monthly Service Chg'!I25 -> 150 | F17: =E14 -> 0.012 | G17: =E17*(1+F17) -> 151.8 | H17: ='B1.2 Billing Determinants'!E25 -> 1 | I17: =G17*H17*12 -> 1821.6 | J17: No Change | K17: =E17+H11 -> 150 | L17: =H17*K17*12 -> 1800
C18: Delivery Firm | E18: ='B1.1 Current Distribution Rates'!J25 -> 3.8432 | F18: =E14 -> 0.012 | G18: =E18*(1+F18) -> 3.8893184 | H18: ='B1.2 Billing Determinants'!J25 -> 33416816 | I18: =G18*H18/100 -> 1299686.373 | J18: Re-Balance | K18: =L18/H18*100 -> 3.889383038 | L18: =I20-(L17+L19) -> 1299707.973
C19: Demand Firm | E19: ='B1.1 Current Distribution Rates'!K25 -> 18.6158 | F19: =E14 -> 0.012 | G19: 18.8391896 | H19: ='B1.2 Billing Determinants'!K25 -> 1298256 | I19: =G19*H19/100 -> 244580.9093 | J19: Change | K19: =G19 -> 18.8391896 | L19: =H19*K19/100 -> 244580.9093
I20: =SUM(I17:I19) -> 1546088.883 | L20: =SUM(L17:L19) -> 1546088.883
L21: =I20-L20 -> 0

Sheet E1.1 Proposed Dist Rates
C2: ='A1.1 Distributor Information'!C3 -> Name of LDC: Natural Resource Gas Limited
C3: ='A1.1 Distributor Information'!C4 -> OEB Application Number: EB-2015-0115
C10: Proposed Distribution Tariff Sheet Rates
C15: Rate Group | E15: Monthly Service Charge | F15: Delivery First 1,000 m3 | G15: Delivery Over 1,000 m3 | H15: Delivery Next 24,000 m3 | I15: Delivery Over 25,000 m3 | J15: Delivery - Firm | K15: Demand - Firm | L15: Commodity | M15: Delivery - Int - Lower | N15: Delivery - Int - Upper
C16: RATE 1 - General Service Rate - Residential | E16: ='D1.1 Rate 1 Adjustment'!K17 -> 13.5 | F16: ='D1.1 Rate 1 Adjustment'!K18 -> 16.23120662 | G16: ='D1.1 Rate 1 Adjustment'!K19 -> 10.909866 | L16: ='D1.1 Rate 1 Adjustment'!K20 -> 0.0363
C17: RATE 1 - General Service Rate - Commercial | E17: ='D1.1 Rate 1 Adjustment'!K17 -> 13.5 | F17: ='D1.1 Rate 1 Adjustment'!K18 -> 16.23120662 | G17: ='D1.1 Rate 1 Adjustment'!K19 -> 10.909866 | L17: ='D1.1 Rate 1 Adjustment'!K20 -> 0.0363
C18: RATE 1 - General Service Rate - Industrial | E18: ='D1.1 Rate 1 Adjustment'!K17 -> 13.5 | F18: ='D1.1 Rate 1 Adjustment'!K18 -> 16.23120662 | G18: ='D1.1 Rate 1 Adjustment'!K19 -> 10.909866 | L18: ='D1.1 Rate 1 Adjustment'!K20 -> 0.0363
C19: RATE 2 - Seasonal Service - Apr to Oct | E19: ='D1.2 Rate 2 Adjustment'!K17 -> 15 | F19: ='D1.2 Rate 2 Adjustment'!K18 -> 15.82119154 | H19: ='D1.2 Rate 2 Adjustment'!K19 -> 9.4826 | I19: ='D1.2 Rate 2 Adjustment'!K20 -> 6.1698 | L19: ='D1.2 Rate 2 Adjustment'!K24 -> 0.0363
C20: RATE 2 - Seasonal Service - Nov to Mar | E20: ='D1.2 Rate 2 Adjustment'!K17 -> 15 | F20: ='D1.2 Rate 2 Adjustment'!K21 -> 19.94241808 | H20: ='D1.2 Rate 2 Adjustment'!K22 -> 15.696 | I20: ='D1.2 Rate 2 Adjustment'!K23 -> 15.2899 | L20: ='D1.2 Rate 2 Adjustment'!K24 -> 0.0363
C21: RATE 3 - Special Large Volume Contract Rate | E21: ='D1.3 Rate 3 Adjustment'!K17 -> 150 | J21: ='D1.3 Rate 3 Adjustment'!K18 -> 4.035654275 | K21: ='D1.3 Rate 3 Adjustment'!K19 -> 29.0974 | L21: ='D1.3 Rate 3 Adjustment'!K20 -> 0.0363 | M21: ='B1.1 Current Distribution Rates'!M21 -> 7.9412 | N21: ='B1.1 Current Distribution Rates'!N21 -> 10.9612
C22: RATE 4 - General Service Peaking - Apr to Dec | E22: ='D1.4 Rate 4 Adjustment'!K17 -> 15 | F22: ='D1.4 Rate 4 Adjustment'!K18 -> 15.81487179 | G22: ='D1.4 Rate 4 Adjustment'!K19 -> 10.5218 | L22: ='D1.4 Rate 4 Adjustment'!K22 -> 0.0363
C23: RATE 4 - General Service Peaking - Jan to Mar | E23: ='D1.4 Rate 4 Adjustment'!K17 -> 15 | F23: ='D1.4 Rate 4 Adjustment'!K20 -> 20.17546908 | G23: ='D1.4 Rate 4 Adjustment'!K21 -> 16.9052 | L23: ='D1.4 Rate 4 Adjustment'!K22 -> 0.0363
C24: RATE 5 - Interruptible Peaking Contract Rate | E24: ='D1.5 Rate 5 Adjustment'!K17 -> 150 | J24: ='D1.5 Rate 5 Adjustment'!K18 -> 7.199466888 | K24: 1 | L24: ='D1.5 Rate 5 Adjustment'!K19 -> 0.0363 | M24: ='B1.1 Current Distribution Rates'!M24 -> 5.4612 | N24: ='B1.1 Current Distribution Rates'!N24 -> 8.4612
C25: RATE 6 - Integrated Grain Processors Co-Operative Aylmer Ethanol Production Facility | E25: ='D1.6 Rate 6 Adjustment'!K17 -> 150 | J25: ='D1.6 Rate 6 Adjustment'!K18 -> 3.889383038 | K25: ='D1.6 Rate 6 Adjustment'!K19 -> 18.8391896 | M25: ='B1.1 Current Distribution Rates'!M25 -> 7.9412 | N25: ='B1.1 Current Distribution Rates'!N25 -> 10.9612
C27: 1 Placeholder rate for average application

Sheet E1.2 Billing Determinants
C2: ='A1.1 Distributor Information'!C3 -> Name of LDC: Natural Resource Gas Limited
C3: ='A1.1 Distributor Information'!C4 -> OEB Application Number: EB-2015-0115
C10: Re-Basing Billing Determinants
C15: Rate Group | E15: Monthly Service Charge | F15: Delivery First 1,000 m3 | G15: Delivery Over 1,000 m3 | H15: Delivery Next 24,000 m3 | I15: Delivery Over 25,000 m3 | J15: Delivery - Firm | K15: Demand - Firm | L15: Commodity | M15: Delivery - Int - Lower | N15: Delivery - Int - Upper
C16: RATE 1 - General Service Rate - Residential | E16: ='B1.2 Billing Determinants'!E16 -> 6559.916667 | F16: ='B1.2 Billing Determinants'!F16 -> 12369781 | G16: ='B1.2 Billing Determinants'!G16 -> 733799.7998 | H16: ='B1.2 Billing Determinants'!H16 -> 0 | I16: ='B1.2 Billing Determinants'!I16 -> 0 | J16: ='B1.2 Billing Determinants'!J16 -> 0 | K16: ='B1.2 Billing Determinants'!K16 -> 0 | L16: ='B1.2 Billing Determinants'!L16 -> 13103580.8 | M16: ='B1.2 Billing Determinants'!M16 -> 0 | N16: ='B1.2 Billing Determinants'!N16 -> 0
C17: RATE 1 - General Service Rate - Commercial | E17: ='B1.2 Billing Determinants'!E17 -> 414 | F17: ='B1.2 Billing Determinants'!F17 -> 1760200 | G17: ='B1.2 Billing Determinants'!G17 -> 2371550.008 | H17: ='B1.2 Billing Determinants'!H17 -> 0 | I17: ='B1.2 Billing Determinants'!I17 -> 0 | J17: ='B1.2 Billing Determinants'!J17 -> 0 | K17: ='B1.2 Billing Determinants'!K17 -> 0 | L17: ='B1.2 Billing Determinants'!L17 -> 4131750.008 | M17: ='B1.2 Billing Determinants'!M17 -> 0 | N17: ='B1.2 Billing Determinants'!N17 -> 0
C18: RATE 1 - General Service Rate - Industrial | E18: ='B1.2 Billing Determinants'!E18 -> 42 | F18: ='B1.2 Billing Determinants'!F18 -> 131100 | G18: ='B1.2 Billing Determinants'!G18 -> 466927.6661 | H18: ='B1.2 Billing Determinants'!H18 -> 0 | I18: ='B1.2 Billing Determinants'!I18 -> 0 | J18: ='B1.2 Billing Determinants'!J18 -> 0 | K18: ='B1.2 Billing Determinants'!K18 -> 0 | L18: ='B1.2 Billing Determinants'!L18 -> 598027.6661 | M18: ='B1.2 Billing Determinants'!M18 -> 0 | N18: ='B1.2 Billing Determinants'!N18 -> 0
C19: RATE 2 - Seasonal Service - Apr to Oct | E19: ='B1.2 Billing Determinants'!E19 -> 73 | F19: ='B1.2 Billing Determinants'!F19 -> 123779 | G19: ='B1.2 Billing Determinants'!G19 -> 0 | H19: ='B1.2 Billing Determinants'!H19 -> 329621 | I19: ='B1.2 Billing Determinants'!I19 -> 0 | J19: ='B1.2 Billing Determinants'!J19 -> 0 | K19: ='B1.2 Billing Determinants'!K19 -> 0 | L19: ='B1.2 Billing Determinants'!L19 -> 453400 | M19: ='B1.2 Billing Determinants'!M19 -> 0 | N19: ='B1.2 Billing Determinants'!N19 -> 0
C20: RATE 2 - Seasonal Service - Nov to Mar | E20: ='B1.2 Billing Determinants'!E20 -> 73 | F20: ='B1.2 Billing Determinants'!F20 -> 5688 | G20: ='B1.2 Billing Determinants'!G20 -> 0 | H20: ='B1.2 Billing Determinants'!H20 -> 43772 | I20: ='B1.2 Billing Determinants'!I20 -> 0 | J20: ='B1.2 Billing Determinants'!J20 -> 0 | K20: ='B1.2 Billing Determinants'!K20 -> 0 | L20: ='B1.2 Billing Determinants'!L20 -> 49460 | M20: ='B1.2 Billing Determinants'!M20 -> 0 | N20: ='B1.2 Billing Determinants'!N20 -> 0
C21: RATE 3 - Special Large Volume Contract Rate | E21: ='B1.2 Billing Determinants'!E21 -> 4 | F21: ='B1.2 Billing Determinants'!F21 -> 0 | G21: ='B1.2 Billing Determinants'!G21 -> 0 | H21: ='B1.2 Billing Determinants'!H21 -> 0 | I21: ='B1.2 Billing Determinants'!I21 -> 0 | J21: ='B1.2 Billing Determinants'!J21 -> 2195299.089 | K21: ='B1.2 Billing Determinants'!K21 -> 256932 | L21: ='B1.2 Billing Determinants'!L21 -> 2195299.089 | M21: ='B1.2 Billing Determinants'!M21 -> 0 | N21: ='B1.2 Billing Determinants'!N21 -> 0
C22: RATE 4 - General Service Peaking - Apr to Dec | E22: ='B1.2 Billing Determinants'!E22 -> 23 | F22: ='B1.2 Billing Determinants'!F22 -> 215710 | G22: ='B1.2 Billing Determinants'!G22 -> 221214.4449 | H22: ='B1.2 Billing Determinants'!H22 -> 0 | I22: ='B1.2 Billing Determinants'!I22 -> 0 | J22: ='B1.2 Billing Determinants'!J22 -> 0 | K22: ='B1.2 Billing Determinants'!K22 -> 0 | L22: ='B1.2 Billing Determinants'!L22 -> 436924.4449 | M22: ='B1.2 Billing Determinants'!M22 -> 0 | N22: ='B1.2 Billing Determinants'!N22 -> 0
C23: RATE 4 - General Service Peaking - Jan to Mar | E23: ='B1.2 Billing Determinants'!E23 -> 23 | F23: ='B1.2 Billing Determinants'!F23 -> 4368.191919 | G23: ='B1.2 Billing Determinants'!G23 -> 12970 | H23: ='B1.2 Billing Determinants'!H23 -> 0 | I23: ='B1.2 Billing Determinants'!I23 -> 0 | J23: ='B1.2 Billing Determinants'!J23 -> 0 | K23: ='B1.2 Billing Determinants'!K23 -> 0 | L23: ='B1.2 Billing Determinants'!L23 -> 17338.19192 | M23: ='B1.2 Billing Determinants'!M23 -> 0 | N23: ='B1.2 Billing Determinants'!N23 -> 0
C24: RATE 5 - Interruptible Peaking Contract Rate | E24: ='B1.2 Billing Determinants'!E24 -> 5 | F24: ='B1.2 Billing Determinants'!F24 -> 0 | G24: ='B1.2 Billing Determinants'!G24 -> 0 | H24: ='B1.2 Billing Determinants'!H24 -> 0 | I24: ='B1.2 Billing Determinants'!I24 -> 0 | J24: ='B1.2 Billing Determinants'!J24 -> 947161.7096 | K24: ='B1.2 Billing Determinants'!K24 -> 0 | L24: ='B1.2 Billing Determinants'!L24 -> 947161.7096 | M24: ='B1.2 Billing Determinants'!M24 -> 0 | N24: ='B1.2 Billing Determinants'!N24 -> 0
C25: RATE 6 - Integrated Grain Processors Co-Operative Aylmer Ethanol Production Facility | E25: ='B1.2 Billing Determinants'!E25 -> 1 | F25: ='B1.2 Billing Determinants'!F25 -> 0 | G25: ='B1.2 Billing Determinants'!G25 -> 0 | H25: ='B1.2 Billing Determinants'!H25 -> 0 | I25: ='B1.2 Billing Determinants'!I25 -> 0 | J25: ='B1.2 Billing Determinants'!J25 -> 33416816 | K25: ='B1.2 Billing Determinants'!K25 -> 1298256 | L25: ='B1.2 Billing Determinants'!L25 -> 0 | M25: ='B1.2 Billing Determinants'!M25 -> 0 | N25: ='B1.2 Billing Determinants'!N25 -> 0
E26: =SUM(E16:E19,E21:E22,E24:E25) -> 7121.916667 | F26: =SUM(F16:F25) -> 14610626.19 | G26: 3806461.919 | H26: 373393 | I26: 0 | J26: 36559276.8 | K26: 1555188 | L26: 21932941.91 | M26: 0 | N26: 0

Sheet E1.3 Proposed Rev Req From Rate
C2: ='A1.1 Distributor Information'!C3 -> Name of LDC: Natural Resource Gas Limited
C3: ='A1.1 Distributor Information'!C4 -> OEB Application Number: EB-2015-0115
C10: Revenue Requirement from Rates
C15: Rate Group | E15: Monthly Service Charge | F15: Delivery First 1,000 m3 | G15: Delivery Over 1,000 m3 | H15: Delivery Next 24,000 m3 | I15: Delivery Over 25,000 m3 | J15: Demand - Firm | K15: Delivery - Firm | L15: Commodity | M15: Delivery - Int - Lower | N15: Delivery - Int - Upper | O15: Total
C16: RATE 1 - General Service Rate - Residential | E16: ='E1.1 Proposed Dist Rates '!E16*'E1.2 Billing Determinants'!E16*12 -> 1062706.5 | F16: ='E1.1 Proposed Dist Rates '!F16*'E1.2 Billing Determinants'!F16/100 -> 2007764.712 | G16: ='E1.1 Proposed Dist Rates '!G16*'E1.2 Billing Determinants'!G16/100 -> 80056.57487 | H16: ='E1.1 Proposed Dist Rates '!H16*'E1.2 Billing Determinants'!H16/100 -> 0 | I16: ='E1.1 Proposed Dist Rates '!I16*'E1.2 Billing Determinants'!I16/100 -> 0 | J16: ='E1.1 Proposed Dist Rates '!J16*'E1.2 Billing Determinants'!J16/100 -> 0 | K16: ='E1.1 Proposed Dist Rates '!K16*'E1.2 Billing Determinants'!K16/100 -> 0 | L16: ='E1.1 Proposed Dist Rates '!L16*'E1.2 Billing Determinants'!L16/100 -> 4756.59983 | M16: ='E1.1 Proposed Dist Rates '!M16*'E1.2 Billing Determinants'!M16/100 -> 0 | N16: ='E1.1 Proposed Dist Rates '!N16*'E1.2 Billing Determinants'!N16/100 -> 0 | O16: =SUM(E16:N16) -> 3155284.387
C17: RATE 1 - General Service Rate - Commercial | E17: ='E1.1 Proposed Dist Rates '!E17*'E1.2 Billing Determinants'!E17*12 -> 67068 | F17: ='E1.1 Proposed Dist Rates '!F17*'E1.2 Billing Determinants'!F17/100 -> 285701.6989 | G17: ='E1.1 Proposed Dist Rates '!G17*'E1.2 Billing Determinants'!G17/100 -> 258732.928 | H17: ='E1.1 Proposed Dist Rates '!H17*'E1.2 Billing Determinants'!H17/100 -> 0 | I17: ='E1.1 Proposed Dist Rates '!I17*'E1.2 Billing Determinants'!I17/100 -> 0 | J17: ='E1.1 Proposed Dist Rates '!J17*'E1.2 Billing Determinants'!J17/100 -> 0 | K17: ='E1.1 Proposed Dist Rates '!K17*'E1.2 Billing Determinants'!K17/100 -> 0 | L17: ='E1.1 Proposed Dist Rates '!L17*'E1.2 Billing Determinants'!L17/100 -> 1499.825253 | M17: ='E1.1 Proposed Dist Rates '!M17*'E1.2 Billing Determinants'!M17/100 -> 0 | N17: ='E1.1 Proposed Dist Rates '!N17*'E1.2 Billing Determinants'!N17/100 -> 0 | O17: =SUM(E17:N17) -> 613002.4521
C18: RATE 1 - General Service Rate - Industrial | E18: ='E1.1 Proposed Dist Rates '!E18*'E1.2 Billing Determinants'!E18*12 -> 6804 | F18: ='E1.1 Proposed Dist Rates '!F18*'E1.2 Billing Determinants'!F18/100 -> 21279.11188 | G18: ='E1.1 Proposed Dist Rates '!G18*'E1.2 Billing Determinants'!G18/100 -> 50941.18268 | H18: ='E1.1 Proposed Dist Rates '!H18*'E1.2 Billing Determinants'!H18/100 -> 0 | I18: ='E1.1 Proposed Dist Rates '!I18*'E1.2 Billing Determinants'!I18/100 -> 0 | J18: ='E1.1 Proposed Dist Rates '!J18*'E1.2 Billing Determinants'!J18/100 -> 0 | K18: ='E1.1 Proposed Dist Rates '!K18*'E1.2 Billing Determinants'!K18/100 -> 0 | L18: ='E1.1 Proposed Dist Rates '!L18*'E1.2 Billing Determinants'!L18/100 -> 217.0840428 | M18: ='E1.1 Proposed Dist Rates '!M18*'E1.2 Billing Determinants'!M18/100 -> 0 | N18: ='E1.1 Proposed Dist Rates '!N18*'E1.2 Billing Determinants'!N18/100 -> 0 | O18: 79241.3786
C19: RATE 2 - Seasonal Service - Apr to Oct | E19: ='E1.1 Proposed Dist Rates '!E19*'E1.2 Billing Determinants'!E19*7 -> 7665 | F19: ='E1.1 Proposed Dist Rates '!F19*'E1.2 Billing Determinants'!F19/100 -> 19583.31267 | G19: ='E1.1 Proposed Dist Rates '!G19*'E1.2 Billing Determinants'!G19/100 -> 0 | H19: ='E1.1 Proposed Dist Rates '!H19*'E1.2 Billing Determinants'!H19/100 -> 31256.64095 | I19: ='E1.1 Proposed Dist Rates '!I19*'E1.2 Billing Determinants'!I19/100 -> 0 | J19: ='E1.1 Proposed Dist Rates '!J19*'E1.2 Billing Determinants'!J19/100 -> 0 | K19: ='E1.1 Proposed Dist Rates '!K19*'E1.2 Billing Determinants'!K19/100 -> 0 | L19: ='E1.1 Proposed Dist Rates '!L19*'E1.2 Billing Determinants'!L19/100 -> 164.5842 | M19: ='E1.1 Proposed Dist Rates '!M19*'E1.2 Billing Determinants'!M19/100 -> 0 | N19: ='E1.1 Proposed Dist Rates '!N19*'E1.2 Billing Determinants'!N19/100 -> 0 | O19: 58669.53782
C20: RATE 2 - Seasonal Service - Nov to Mar | E20: ='E1.1 Proposed Dist Rates '!E20*'E1.2 Billing Determinants'!E20*5 -> 5475 | F20: ='E1.1 Proposed Dist Rates '!F20*'E1.2 Billing Determinants'!F20/100 -> 1134.32474 | G20: ='E1.1 Proposed Dist Rates '!G20*'E1.2 Billing Determinants'!G20/100 -> 0 | H20: ='E1.1 Proposed Dist Rates '!H20*'E1.2 Billing Determinants'!H20/100 -> 6870.45312 | I20: ='E1.1 Proposed Dist Rates '!I20*'E1.2 Billing Determinants'!I20/100 -> 0 | J20: ='E1.1 Proposed Dist Rates '!J20*'E1.2 Billing Determinants'!J20/100 -> 0 | K20: ='E1.1 Proposed Dist Rates '!K20*'E1.2 Billing Determinants'!K20/100 -> 0 | L20: ='E1.1 Proposed Dist Rates '!L20*'E1.2 Billing Determinants'!L20/100 -> 17.95398 | M20: ='E1.1 Proposed Dist Rates '!M20*'E1.2 Billing Determinants'!M20/100 -> 0 | N20: ='E1.1 Proposed Dist Rates '!N20*'E1.2 Billing Determinants'!N20/100 -> 0 | O20: 13497.73184
C21: RATE 3 - Special Large Volume Contract Rate | E21: ='E1.1 Proposed Dist Rates '!E21*'E1.2 Billing Determinants'!E21*12 -> 7200 | F21: ='E1.1 Proposed Dist Rates '!F21*'E1.2 Billing Determinants'!F21/100 -> 0 | G21: ='E1.1 Proposed Dist Rates '!G21*'E1.2 Billing Determinants'!G21/100 -> 0 | H21: ='E1.1 Proposed Dist Rates '!H21*'E1.2 Billing Determinants'!H21/100 -> 0 | I21: ='E1.1 Proposed Dist Rates '!I21*'E1.2 Billing Determinants'!I21/100 -> 0 | J21: ='E1.1 Proposed Dist Rates '!J21*'E1.2 Billing Determinants'!J21/100 -> 88594.68156 | K21: ='E1.1 Proposed Dist Rates '!K21*'E1.2 Billing Determinants'!K21/100 -> 74760.53177 | L21: ='E1.1 Proposed Dist Rates '!L21*'E1.2 Billing Determinants'!L21/100 -> 796.8935694 | M21: ='E1.1 Proposed Dist Rates '!M21*'E1.2 Billing Determinants'!M21/100 -> 0 | N21: ='E1.1 Proposed Dist Rates '!N21*'E1.2 Billing Determinants'!N21/100 -> 0 | O21: 171352.1069
C22: RATE 4 - General Service Peaking - Apr to Dec | E22: ='E1.1 Proposed Dist Rates '!E22*'E1.2 Billing Determinants'!E22*9 -> 3105 | F22: ='E1.1 Proposed Dist Rates '!F22*'E1.2 Billing Determinants'!F22/100 -> 34114.25994 | G22: ='E1.1 Proposed Dist Rates '!G22*'E1.2 Billing Determinants'!G22/100 -> 23275.74146 | H22: ='E1.1 Proposed Dist Rates '!H22*'E1.2 Billing Determinants'!H22/100 -> 0 | I22: ='E1.1 Proposed Dist Rates '!I22*'E1.2 Billing Determinants'!I22/100 -> 0 | J22: ='E1.1 Proposed Dist Rates '!J22*'E1.2 Billing Determinants'!J22/100 -> 0 | K22: ='E1.1 Proposed Dist Rates '!K22*'E1.2 Billing Determinants'!K22/100 -> 0 | L22: ='E1.1 Proposed Dist Rates '!L22*'E1.2 Billing Determinants'!L22/100 -> 158.6035735 | M22: ='E1.1 Proposed Dist Rates '!M22*'E1.2 Billing Determinants'!M22/100 -> 0 | N22: ='E1.1 Proposed Dist Rates '!N22*'E1.2 Billing Determinants'!N22/100 -> 0 | O22: 60653.60497
C23: RATE 4 - General Service Peaking - Jan to Mar | E23: ='E1.1 Proposed Dist Rates '!E23*'E1.2 Billing Determinants'!E23*3 -> 1035 | F23: ='E1.1 Proposed Dist Rates '!F23*'E1.2 Billing Determinants'!F23/100 -> 881.3032098 | G23: ='E1.1 Proposed Dist Rates '!G23*'E1.2 Billing Determinants'!G23/100 -> 2192.60444 | H23: ='E1.1 Proposed Dist Rates '!H23*'E1.2 Billing Determinants'!H23/100 -> 0 | I23: ='E1.1 Proposed Dist Rates '!I23*'E1.2 Billing Determinants'!I23/100 -> 0 | J23: ='E1.1 Proposed Dist Rates '!J23*'E1.2 Billing Determinants'!J23/100 -> 0 | K23: ='E1.1 Proposed Dist Rates '!K23*'E1.2 Billing Determinants'!K23/100 -> 0 | L23: ='E1.1 Proposed Dist Rates '!L23*'E1.2 Billing Determinants'!L23/100 -> 6.293763667 | M23: ='E1.1 Proposed Dist Rates '!M23*'E1.2 Billing Determinants'!M23/100 -> 0 | N23: ='E1.1 Proposed Dist Rates '!N23*'E1.2 Billing Determinants'!N23/100 -> 0 | O23: 4115.201414
C24: RATE 5 - Interruptible Peaking Contract Rate | E24: ='E1.1 Proposed Dist Rates '!E24*'E1.2 Billing Determinants'!E24*12 -> 9000 | F24: ='E1.1 Proposed Dist Rates '!F24*'E1.2 Billing Determinants'!F24/100 -> 0 | G24: ='E1.1 Proposed Dist Rates '!G24*'E1.2 Billing Determinants'!G24/100 -> 0 | H24: ='E1.1 Proposed Dist Rates '!H24*'E1.2 Billing Determinants'!H24/100 -> 0 | I24: ='E1.1 Proposed Dist Rates '!I24*'E1.2 Billing Determinants'!I24/100 -> 0 | J24: ='E1.1 Proposed Dist Rates '!J24*'E1.2 Billing Determinants'!J24/100 -> 68190.59366 | K24: ='E1.1 Proposed Dist Rates '!K24*'E1.2 Billing Determinants'!K24/100 -> 0 | L24: ='E1.1 Proposed Dist Rates '!L24*'E1.2 Billing Determinants'!L24/100 -> 343.8197006 | M24: ='E1.1 Proposed Dist Rates '!M24*'E1.2 Billing Determinants'!M24/100 -> 0 | N24: ='E1.1 Proposed Dist Rates '!N24*'E1.2 Billing Determinants'!N24/100 -> 0 | O24: 77534.41336
C25: RATE 6 - Integrated Grain Processors Co-Operative Aylmer Ethanol Production Facility | E25: ='E1.1 Proposed Dist Rates '!E25*'E1.2 Billing Determinants'!E25*12 -> 1800 | F25: ='E1.1 Proposed Dist Rates '!F25*'E1.2 Billing Determinants'!F25/100 -> 0 | G25: ='E1.1 Proposed Dist Rates '!G25*'E1.2 Billing Determinants'!G25/100 -> 0 | H25: ='E1.1 Proposed Dist Rates '!H25*'E1.2 Billing Determinants'!H25/100 -> 0 | I25: ='E1.1 Proposed Dist Rates '!I25*'E1.2 Billing Determinants'!I25/100 -> 0 | J25: ='E1.1 Proposed Dist Rates '!J25*'E1.2 Billing Determinants'!J25/100 -> 1299707.973 | K25: ='E1.1 Proposed Dist Rates '!K25*'E1.2 Billing Determinants'!K25/100 -> 244580.9093 | L25: ='E1.1 Proposed Dist Rates '!L25*'E1.2 Billing Determinants'!L25/100 -> 0 | M25: ='E1.1 Proposed Dist Rates '!M25*'E1.2 Billing Determinants'!M25/100 -> 0 | N25: ='E1.1 Proposed Dist Rates '!N25*'E1.2 Billing Determinants'!N25/100 -> 0 | O25: 1546088.883
E26: =SUM(E16:E25) -> 1171858.5 | F26: =SUM(F16:F25) -> 2370458.724 | G26: 415199.0314 | H26: 38127.09407 | I26: 0 | J26: 1456493.249 | K26: 319341.4411 | L26: 7961.657913 | M26: 0 | N26: 0 | O26: 5779439.697
N28: Proposed Revenue Requirement | O28: =O26 -> 5779439.697
N29: Current Revenue Requirement | O29: ='B1.3 Current Rev Req From Rates'!O26 -> 5710908.791
N30: Change | O30: =O28-O29 -> 68530.9055
O31: =O30/O29 -> 0.012

Sheet F1.1 Calc Shared Tax Changes
C2: ='A1.1 Distributor Information'!C3 -> Name of LDC: Natural Resource Gas Limited
C3: ='A1.1 Distributor Information'!C4 -> OEB Application Number: EB-2015-0115
C10: Tax Change Rate Rider
E14: 2010 | G14: 2011 | I14: 2012 | K14: 2013 | M14: 2014 | O14: 2015 | Q14: 2016
C15: Regulatory Taxable Income | E15: 793363 | G15: =E15 -> 793363 | I15: =E15 -> 793363 | K15: =E15 -> 793363 | M15: =E15 -> 793363 | O15: =G15 -> 793363 | Q15: =E15 -> 793363
C17: Federal Income Tax Rate | E17: =(0.18/12*3)+(0.165/12*9) -> 0.16875 | G17: =(0.165/12*3)+(0.15/12*9) -> 0.15375 | I17: =0.15 -> 0.15 | K17: =0.15 -> 0.15 | M17: =0.15 -> 0.15 | O17: =0.15 -> 0.15 | Q17: =0.15 -> 0.15
C18: Federal Income Tax | E18: =E15*E17 -> 133880.0063 | G18: =G15*G17 -> 121979.5612 | I18: =I15*I17 -> 119004.45 | K18: =K15*K17 -> 119004.45 | M18: =M15*M17 -> 119004.45 | O18: =O15*O17 -> 119004.45 | Q18: =Q15*Q17 -> 119004.45
C20: Provincial Income Tax
C21: Provincial Income Tax Rate - First $500,000 | E21: 0.045 | G21: =E21 -> 0.045 | I21: =G21 -> 0.045 | K21: =I21 -> 0.045 | M21: =I21 -> 0.045 | O21: =K21 -> 0.045
C22: Provincial Income Tax - First $500,000 | E22: =IF(E15>500000,500000*E21,E15*E21) -> 22500 | G22: =IF(G15>500000,500000*G21,G15*G21) -> 22500 | I22: =IF(I15>500000,500000*I21,I15*I21) -> 22500 | K22: =IF(K15>500000,500000*K21,K15*K21) -> 22500 | M22: =IF(M15>500000,500000*M21,M15*M21) -> 22500 | O22: =IF(O15>500000,500000*O21,O15*O21) -> 22500 | Q22: =IF(Q15>500000,500000*Q21,Q15*Q21) -> 0
C23: Provincial Income Tax Rate - Over $500,000 | E23: 0.11875 | G23: =0.1175/12*9+0.1125/12*3 -> 0.11625 | I23: 0.115 | K23: 0.115 | M23: 0.115 | O23: 0.115 | Q23: 0.115
C24: Provincial Income Tax - Over $500,000 | E24: =IF(E15>500000,(E15-500000)*E23,0) -> 34836.85625 | G24: =IF(G15>500000,(G15-500000)*G23,0) -> 34103.44875 | I24: =IF(I15>500000,(I15-500000)*I23,0) -> 33736.745 | K24: =IF(K15>500000,(K15-500000)*K23,0) -> 33736.745 | M24: =IF(M15>500000,(M15-500000)*M23,0) -> 33736.745 | O24: =IF(O15>500000,(O15-500000)*O23,0) -> 33736.745 | Q24: =Q15*Q23 -> 91236.745
C26: Total Income Taxes Payable | E26: =E18+E22+E24 -> 191216.8625 | G26: =G18+G22+G24 -> 178583.01 | I26: =I18+I22+I24 -> 175241.195 | K26: =K18+K22+K24 -> 175241.195 | M26: =M18+M22+M24 -> 175241.195 | O26: =O18+O22+O24 -> 175241.195 | Q26: =Q18+Q22+Q24 -> 210241.195
C27: Effective Tax Rate | E27: =E26/E15 -> 0.2410206457 | G27: =G26/G15 -> 0.225096217 | I27: =I26/I15 -> 0.2208840027 | K27: =K26/K15 -> 0.2208840027 | M27: =M26/M15 -> 0.2208840027 | O27: =O26/O15 -> 0.2208840027 | Q27: =Q26/Q15 -> 0.265
C29: Grossed up Income Tax | E29: =E26/(1-E27) -> 251939.4782 | G29: =G26/(1-G27) -> 230458.3019 | I29: =I26/(1-I27) -> 224923.1123 | K29: =K26/(1-K27) -> 224923.1123 | M29: =M26/(1-M27) -> 224923.1123 | O29: =O26/(1-O27) -> 224923.1123 | Q29: =Q26/(1-Q27) -> 286042.4422
C31: Change in Income Taxes | G31: =$E$29-G29 -> 21481.17626 | I31: =$E$29-I29 -> 27016.36586 | K31: =$E$29-K29 -> 27016.36586 | M31: =$E$29-M29 -> 27016.36586 | O31: =$E$29-O29 -> 27016.36586 | Q31: =$E$29-Q29 -> -34102.96397
C33: 50 % Change in Taxes | G33: =G31/2 -> 10740.58813 | I33: =I31/2 -> 13508.18293 | K33: =K31/2 -> 13508.18293 | M33: =M31/2 -> 13508.18293 | O33: =O31/2 -> 13508.18293 | Q33: =Q31/2 -> -17051.48199

Sheet F1.2 Alloc Shared Tax Changes
C2: ='A1.1 Distributor Information'!C3 -> Name of LDC: Natural Resource Gas Limited
C3: ='A1.1 Distributor Information'!C4 -> OEB Application Number: EB-2015-0115
C10: Allocation of Shared Tax Chances
C15: Rate Group | E15: Revenue By Rate Class | G15: Proportionate Revenue | I15: Shared Tax Changes | K15: Number of Customers | M15: Number of Months | O15: Fixed Rate Rider
C16: RATE 1 - General Service Rate | E16: =SUM('B1.3 Current Rev Req From Rates'!O16:O18) -> 3801905.354 | G16: =E16/$E$22 -> 0.6657268558 | I16: =$I$22*G16 -> 11351.62949 | K16: =SUM('B1.2 Billing Determinants'!E16:E18) -> 7015.916667 | M16: 12 | O16: =ROUND(I16/K16/M16,2) -> 0.13
C17: RATE 2 - Seasonal Service | E17: =SUM('B1.3 Current Rev Req From Rates'!O19:O20) -> 71311.53129 | G17: 0.01248689725 | I17: 212.9201035 | K17: ='B1.2 Billing Determinants'!E19 -> 73 | M17: 12 | O17: =ROUND(I17/K17/M17,2) -> 0.24
C18: RATE 3 - Special Large Volume Contract Rate | E18: ='B1.3 Current Rev Req From Rates'!O21 -> 169320.2637 | G18: 0.02964856731 | I18: 505.5520115 | K18: ='B1.2 Billing Determinants'!E21 -> 4 | M18: 12 | O18: 10.53
C19: RATE 4 - General Service Peaking | E19: =SUM('B1.3 Current Rev Req From Rates'!O22:O23) -> 64000.79683 | G19: 0.01120676221 | I19: 191.091904 | K19: ='B1.2 Billing Determinants'!E22 -> 23 | M19: 12 | O19: 0.69
C20: RATE 5 - Interruptible Peaking Contract Rate | E20: ='B1.3 Current Rev Req From Rates'!O24 -> 76615.03297 | G20: 0.01341555885 | I20: 228.75516 | K20: ='B1.2 Billing Determinants'!E24 -> 5 | M20: 12 | O20: 3.81
C21: RATE 6 - Integrated Grain Processors Co-Operative Aylmer Ethanol Production Facility | E21: ='B1.3 Current Rev Req From Rates'!O25 -> 1527755.813 | G21: 0.2675153585 | I21: 4561.533318 | K21: ='B1.2 Billing Determinants'!E25 -> 1 | M21: 12 | O21: =ROUND(I21/K21/M21,2) -> 380.13
E22: =SUM(E16:E21) -> 5710908.791 | G22: =SUM(G16:G21) -> 1 | I22: =-'F1.1 Calc Shared Tax Changes'!Q33 -> 17051.48199 | K22: =SUM(K16:K21) -> 7121.916667

Sheet F2.1 Deferred Revenue Recovery (hidden)
C1: ='A1.1 Distributor Information'!#REF! -> 
C2: ='A1.1 Distributor Information'!C3 -> Name of LDC: Natural Resource Gas Limited
C3: ='A1.1 Distributor Information'!C4 -> OEB Application Number: EB-2015-0115
C10: Deferred Revenue Recovery
C15: Rate Group | E15: Proposed Revenue Requirement | G15: Current Revenue Requirement | I15: Change In Revenue Requirement | K15: Deferred Revenue | M15: Number of Customers | O15: Proposed Deferred Revenue Recovery Rate Rider
E16: A | G16: B | I16: C = A- B | K16: D = C / 12 * 6 | M16: E | O16: F = D / E / 6
C17: ='F1.2 Alloc Shared Tax Changes'!C16 -> RATE 1 - General Service Rate | E17: =SUM('E1.3 Proposed Rev Req From Rate'!O16:O18) -> 3847528.218 | G17: =SUM('B1.3 Current Rev Req From Rates'!O16:O18) -> 3801905.354 | I17: =E17-G17 -> 45622.86424 | K17: =I17/12*0 -> 0 | M17: ='F1.2 Alloc Shared Tax Changes'!K16 -> 7015.916667 | O17: =ROUND(K17/M17/6,2) -> 0
C18: ='F1.2 Alloc Shared Tax Changes'!C17 -> RATE 2 - Seasonal Service | E18: =SUM('E1.3 Proposed Rev Req From Rate'!O19:O20) -> 72167.26966 | G18: =SUM('B1.3 Current Rev Req From Rates'!O19:O20) -> 71311.53129 | I18: =E18-G18 -> 855.7383754 | K18: =I18/12*0 -> 0 | M18: ='F1.2 Alloc Shared Tax Changes'!K17 -> 73 | O18: =ROUND(K18/M18/6,2) -> 0
C19: ='F1.2 Alloc Shared Tax Changes'!C18 -> RATE 3 - Special Large Volume Contract Rate | E19: ='E1.3 Proposed Rev Req From Rate'!O21 -> 171352.1069 | G19: ='B1.3 Current Rev Req From Rates'!O21 -> 169320.2637 | I19: 2031.843165 | K19: 0 | M19: ='F1.2 Alloc Shared Tax Changes'!K18 -> 4 | O19: 0
C20: ='F1.2 Alloc Shared Tax Changes'!C19 -> RATE 4 - General Service Peaking | E20: =SUM('E1.3 Proposed Rev Req From Rate'!O22:O23) -> 64768.80639 | G20: =SUM('B1.3 Current Rev Req From Rates'!O22:O23) -> 64000.79683 | I20: 768.0095619 | K20: 0 | M20: ='F1.2 Alloc Shared Tax Changes'!K19 -> 23 | O20: 0
C21: ='F1.2 Alloc Shared Tax Changes'!C20 -> RATE 5 - Interruptible Peaking Contract Rate | E21: ='E1.3 Proposed Rev Req From Rate'!O24 -> 77534.41336 | G21: ='B1.3 Current Rev Req From Rates'!O24 -> 76615.03297 | I21: 919.3803956 | K21: 0 | M21: ='F1.2 Alloc Shared Tax Changes'!K20 -> 5 | O21: 0
C22: ='F1.2 Alloc Shared Tax Changes'!C21 -> RATE 6 - Integrated Grain Processors Co-Operative Aylmer Ethanol Production Facility | E22: ='E1.3 Proposed Rev Req From Rate'!O25 -> 1546088.883 | G22: ='B1.3 Current Rev Req From Rates'!O25 -> 1527755.813 | I22: 18333.06976 | K22: 0 | M22: ='F1.2 Alloc Shared Tax Changes'!K21 -> 1 | O22: 0
E23: =SUM(E17:E22) -> 5779439.697 | G23: =SUM(G17:G22) -> 5710908.791 | I23: =SUM(I17:I22) -> 68530.9055 | K23: =SUM(K17:K22) -> 0 | M23: =SUM(M17:M22) -> 7121.916667
I24: =I23/G23 -> 0.012

Sheet F1.3 Proposed Rate Riders
C2: ='A1.1 Distributor Information'!C3 -> Name of LDC: Natural Resource Gas Limited
C3: ='A1.1 Distributor Information'!C4 -> OEB Application Number: EB-2015-0115
C10: Proposed Rate Riders
C12: Description | E12: Shared Tax Changes | G12: Deferred Revenue Recovery
C13: Effective Until | E13: September 30, 2016 | G13: September 30, 2014
E14: Per Customer Per Month | G14: Per Customer Per Month
C15: Rate Group
C16: RATE 1 - General Service Rate - Residential | E16: ='F1.2 Alloc Shared Tax Changes'!$O$16 -> 0.13 | G16: ='F2.1 Deferred Revenue Recovery'!O17 -> 0
C17: RATE 1 - General Service Rate - Commercial | E17: ='F1.2 Alloc Shared Tax Changes'!$O$16 -> 0.13 | G17: =G16 -> 0
C18: RATE 1 - General Service Rate - Industrial | E18: ='F1.2 Alloc Shared Tax Changes'!$O$16 -> 0.13 | G18: =G17 -> 0
C19: RATE 2 - Seasonal Service - Apr to Oct | E19: ='F1.2 Alloc Shared Tax Changes'!$O$17 -> 0.24 | G19: ='F2.1 Deferred Revenue Recovery'!O18 -> 0
C20: RATE 2 - Seasonal Service - Nov to Mar | E20: ='F1.2 Alloc Shared Tax Changes'!$O$17 -> 0.24 | G20: =G19 -> 0
C21: RATE 3 - Special Large Volume Contract Rate | E21: ='F1.2 Alloc Shared Tax Changes'!$O$18 -> 10.53 | G21: ='F2.1 Deferred Revenue Recovery'!O19 -> 0
C22: RATE 4 - General Service Peaking - Apr to Dec | E22: ='F1.2 Alloc Shared Tax Changes'!$O$19 -> 0.69 | G22: ='F2.1 Deferred Revenue Recovery'!O20 -> 0
C23: RATE 4 - General Service Peaking - Jan to Mar | E23: ='F1.2 Alloc Shared Tax Changes'!$O$19 -> 0.69 | G23: =G22 -> 0
C24: RATE 5 - Interruptible Peaking Contract Rate | E24: ='F1.2 Alloc Shared Tax Changes'!$O$20 -> 3.81 | G24: ='F2.1 Deferred Revenue Recovery'!O21 -> 0
C25: RATE 6 - Integrated Grain Processors Co-Operative Aylmer Ethanol Production Facility | E25: ='F1.2 Alloc Shared Tax Changes'!$O$21 -> 380.13 | G25: ='F2.1 Deferred Revenue Recovery'!O22 -> 0

Sheet G1.1 Rate 1 Bill Impact
C2: ='A1.1 Distributor Information'!C3 -> Name of LDC: Natural Resource Gas Limited
C3: ='A1.1 Distributor Information'!C4 -> OEB Application Number: EB-2015-0115
C7: Rate 1 Delivery Bill Impact
C10: Rate 1 - Residential | F10: Current Rate | H10: Proposed Rate
C12: Customer | F12: ='B1.1 Current Distribution Rates'!E16 -> 13.5 | H12: ='E1.1 Proposed Dist Rates '!E16 -> 13.5
C13: Block 1 (First 1,000 m3 per month) | F13: ='B1.1 Current Distribution Rates'!F16 -> 15.9437 | H13: ='E1.1 Proposed Dist Rates '!F16 -> 16.23120662
C14: Block 2 (Over 1,000 m3 per month) | F14: ='B1.1 Current Distribution Rates'!G16 -> 10.7805 | H14: ='E1.1 Proposed Dist Rates '!G16 -> 10.909866
C15: System Gas Charge | F15: ='B1.1 Current Distribution Rates'!L16 -> 0.0363 | H15: ='E1.1 Proposed Dist Rates '!L16 -> 0.0363
C17: Rate Riders
C18: Shared Tax Changes 2014 | F18: ='C1.1 Current Rate Riders'!$E$16 -> -0.11
C19: Shared Tax Changes 2015 | H19: =ROUND('F1.3 Proposed Rate Riders'!$E$16,2) -> 0.13
C21: Average Annual Consumption
C22: Block 1 (First 1,000 m3 per month) | E22: 2002
C23: Block 2 (Over 1,000 m3 per month) | E23: 0
C25: Delivery | E25: Metric | F25: Current Rate | H25: Proposed Rate | J25: Change $ | L25: Change %
C26: Customer | E26: 12 | F26: =F12*E26 -> 162 | H26: =H12*E26 -> 162 | J26: =H26-F26 -> 0 | L26: =IF(ISERROR(J26/F26),0,J26/F26) -> 0
C27: Block 1 (First 1,000 m3 per month) | E27: =E22 -> 2002 | F27: =F13*E27/100 -> 319.192874 | H27: =H13*E27/100 -> 324.9487565 | J27: =H27-F27 -> 5.755882505 | L27: =IF(ISERROR(J27/F27),0,J27/F27) -> 0.01803261593
C28: Block 2 (Over 1,000 m3 per month) | E28: =E23 -> 0 | F28: =F14*E28/100 -> 0 | H28: =H14*E28/100 -> 0 | J28: 0 | L28: =IF(ISERROR(J28/F28),0,J28/F28) -> 0
C29: System Gas Charge | E29: =SUM(E27:E28) -> 2002 | F29: =ROUND(F15*E29/100,2) -> 0.73 | H29: =ROUND(H15*E29/100,2) -> 0.73 | J29: 0 | L29: =IF(ISERROR(J29/F29),0,J29/F29) -> 0
C30: Total Delivery | F30: =SUM(F26:F29) -> 481.922874 | H30: =SUM(H26:H29) -> 487.6787565 | J30: 5.755882505 | L30: =IF(ISERROR(J30/F30),0,J30/F30) -> 0.01194357607
C32: Rate Riders
C34: Rate Riders | E34: Metric | F34: Current Rate | H34: Proposed Rate | J34: Change $ | L34: Change %
C35: Shared Tax Changes 2014 | E35: 12 | F35: =F18*E35 -> -1.32 | H35: 0 | J35: =H35-F35 -> 1.32 | L35: =IF(ISERROR(J35/F35),1,J35/F35) -> -1
C36: Shared Tax Changes 2015 | E36: 12 | F36: 0 | H36: =H19*E36 -> 1.56 | J36: =H36-F36 -> 1.56 | L36: =IF(ISERROR(J36/F36),1,J36/F36) -> 1
C37: Total Rate Riders | F37: =SUM(F35:F36) -> -1.32 | H37: =SUM(H35:H36) -> 1.56 | J37: =SUM(J35:J36) -> 2.88 | L37: =IF(ISERROR(J37/F37),0,J37/F37) -> -2.181818182
C39: Total Bill Impact | F39: =SUM(F30,F37) -> 480.602874 | H39: =SUM(H30,H37) -> 489.2387565 | J39: =SUM(J30,J37) -> 8.635882505 | L39: =IF(ISERROR(J39/F39),0,J39/F39) -> 0.01796885323
C41: Rate 1 - Commercial | F41: Current Rate | H41: Proposed Rate
C43: Customer | F43: ='B1.1 Current Distribution Rates'!E17 -> 13.5 | H43: ='E1.1 Proposed Dist Rates '!E17 -> 13.5
C44: Block 1 (First 1,000 m3 per month) | F44: ='B1.1 Current Distribution Rates'!F17 -> 15.9437 | H44: ='E1.1 Proposed Dist Rates '!F17 -> 16.23120662
C45: Block 2 (Over 1,000 m3 per month) | F45: ='B1.1 Current Distribution Rates'!G17 -> 10.7805 | H45: ='E1.1 Proposed Dist Rates '!G17 -> 10.909866
C46: System Gas Charge | F46: ='B1.1 Current Distribution Rates'!L16 -> 0.0363 | H46: ='E1.1 Proposed Dist Rates '!L17 -> 0.0363
C48: Rate Riders
C49: Shared Tax Changes 2014 | F49: ='C1.1 Current Rate Riders'!$E$17 -> -0.11
C50: Shared Tax Changes 2015 | H50: =ROUND('F1.3 Proposed Rate Riders'!E17,2) -> 0.13
C52: Average Annual Consumption
C53: Block 1 (First 1,000 m3 per month) | E53: 4252
C54: Block 2 (Over 1,000 m3 per month) | E54: 5728
E56: Metric | F56: Current Rate | H56: Proposed Rate | J56: Change $ | L56: Change %
C57: Customer | E57: 12 | F57: =F43*E57 -> 162 | H57: =H43*E57 -> 162 | J57: =H57-F57 -> 0 | L57: =IF(ISERROR(J57/F57),0,J57/F57) -> 0
C58: Block 1 (First 1,000 m3 per month) | E58: =E53 -> 4252 | F58: =F44*E58/100 -> 677.926124 | H58: =H44*E58/100 -> 690.1509054 | J58: =H58-F58 -> 12.22478143 | L58: =IF(ISERROR(J58/F58),0,J58/F58) -> 0.01803261593
C59: Block 2 (Over 1,000 m3 per month) | E59: =E54 -> 5728 | F59: =F45*E59/100 -> 617.50704 | H59: =H45*E59/100 -> 624.9171245 | J59: 7.41008448 | L59: =IF(ISERROR(J59/F59),0,J59/F59) -> 0.012
C60: System Gas Charge | E60: =SUM(E58:E59) -> 9980 | F60: =F46*E60/100 -> 3.62274 | H60: =H46*E60/100 -> 3.62274 | J60: 0 | L60: =IF(ISERROR(J60/F60),0,J60/F60) -> 0
C61: Total Delivery | F61: =SUM(F57:F60) -> 1461.055904 | H61: =SUM(H57:H60) -> 1480.69077 | J61: 19.63486591 | L61: =IF(ISERROR(J61/F61),0,J61/F61) -> 0.01343881904
C63: Rate Riders
C65: Rate Riders | E65: Metric | F65: Current Rate | H65: Proposed Rate | J65: Change $ | L65: Change %
C66: Shared Tax Changes 2014 | E66: 12 | F66: =F49*E66 -> -1.32 | H66: 0 | J66: =H66-F66 -> 1.32 | L66: =IF(ISERROR(J66/F66),1,J66/F66) -> -1
C67: Shared Tax Changes 2015 | E67: 12 | F67: 0 | H67: =H50*E67 -> 1.56 | J67: =H67-F67 -> 1.56 | L67: =IF(ISERROR(J67/F67),1,J67/F67) -> 1
C68: Total Rate Riders | F68: =SUM(F66:F67) -> -1.32 | H68: =SUM(H66:H67) -> 1.56 | J68: =SUM(J66:J67) -> 2.88 | L68: =IF(ISERROR(J68/F68),0,J68/F68) -> -2.181818182
C70: Total Bill Impact | F70: =SUM(F61,F68) -> 1459.735904 | H70: =SUM(H61,H68) -> 1482.25077 | J70: =SUM(J61,J68) -> 22.51486591 | L70: =IF(ISERROR(J70/F70),0,J70/F70) -> 0.01542393103
C73: Rate 1 - Industrial | F73: Current Rate | H73: Proposed Rate
C75: Customer | F75: ='B1.1 Current Distribution Rates'!E18 -> 13.5 | H75: ='E1.1 Proposed Dist Rates '!E18 -> 13.5
C76: Block 1 (First 1,000 m3 per month) | F76: ='B1.1 Current Distribution Rates'!F18 -> 15.9437 | H76: ='E1.1 Proposed Dist Rates '!F18 -> 16.23120662
C77: Block 2 (Over 1,000 m3 per month) | F77: ='B1.1 Current Distribution Rates'!G18 -> 10.7805 | H77: ='E1.1 Proposed Dist Rates '!G18 -> 10.909866
C78: System Gas Charge | F78: ='B1.1 Current Distribution Rates'!L18 -> 0.0363 | H78: ='E1.1 Proposed Dist Rates '!L18 -> 0.0363
C80: Rate Riders
C81: Shared Tax Changes 2014 | F81: ='C1.1 Current Rate Riders'!E18 -> -0.11
C82: Shared Tax Changes 2015 | H82: =ROUND('F1.3 Proposed Rate Riders'!E18,2) -> 0.13
C84: Average Annual Consumption
C85: Block 1 (First 1,000 m3 per month) | E85: 3122
C86: Block 2 (Over 1,000 m3 per month) | E86: 11117
E88: Metric | F88: Current Rate | H88: Proposed Rate | J88: Change $ | L88: Change %
C89: Customer | E89: 12 | F89: =F75*E89 -> 162 | H89: =H75*E89 -> 162 | J89: =H89-F89 -> 0 | L89: =IF(ISERROR(J89/F89),0,J89/F89) -> 0
C90: Block 1 (First 1,000 m3 per month) | E90: =E85 -> 3122 | F90: =F76*E90/100 -> 497.762314 | H90: =H76*E90/100 -> 506.7382706 | J90: =H90-F90 -> 8.975956634 | L90: =IF(ISERROR(J90/F90),0,J90/F90) -> 0.01803261593
C91: Block 2 (Over 1,000 m3 per month) | E91: =E86 -> 11117 | F91: =F77*E91/100 -> 1198.468185 | H91: =H77*E91/100 -> 1212.849803 | J91: 14.38161822 | L91: =IF(ISERROR(J91/F91),0,J91/F91) -> 0.012
C92: System Gas Charge | E92: =SUM(E90:E91) -> 14239 | F92: =F78*E92/100 -> 5.168757 | H92: =H78*E92/100 -> 5.168757 | J92: 0 | L92: =IF(ISERROR(J92/F92),0,J92/F92) -> 0
C93: Total Delivery | F93: =SUM(F89:F92) -> 1863.399256 | H93: =SUM(H89:H92) -> 1886.756831 | J93: 23.35757485 | L93: =IF(ISERROR(J93/F93),0,J93/F93) -> 0.01253492765
C95: Rate Riders
C97: Rate Riders | E97: Metric | F97: Current Rate | H97: Proposed Rate | J97: Change $ | L97: Change %
C98: Shared Tax Changes 2014 | E98: 12 | F98: =F81*E98 -> -1.32 | H98: 0 | J98: =H98-F98 -> 1.32 | L98: =IF(ISERROR(J98/F98),1,J98/F98) -> -1
C99: Shared Tax Changes 2015 | E99: 12 | F99: 0 | H99: =H82*E99 -> 1.56 | J99: =H99-F99 -> 1.56 | L99: =IF(ISERROR(J99/F99),1,J99/F99) -> 1
C100: Total Rate Riders | F100: =SUM(F98:F99) -> -1.32 | H100: =SUM(H98:H99) -> 1.56 | J100: =SUM(J98:J99) -> 2.88 | L100: =IF(ISERROR(J100/F100),0,J100/F100) -> -2.181818182
C102: Total Bill Impact | F102: =SUM(F93,F100) -> 1862.079256 | H102: =SUM(H93,H100) -> 1888.316831 | J102: =SUM(J93,J100) -> 26.23757485 | L102: =IF(ISERROR(J102/F102),0,J102/F102) -> 0.01409047159

Sheet G1.2 Rate 2 Bill Impact
C2: ='A1.1 Distributor Information'!C3 -> Name of LDC: Natural Resource Gas Limited
C3: ='A1.1 Distributor Information'!C4 -> OEB Application Number: EB-2015-0115
C7: Rate 2 Delivery Bill Impact
C9: Rate 2 - April to October | F9: Current Rate | H9: Proposed Rate
C11: Customer | F11: ='B1.1 Current Distribution Rates'!E19 -> 15 | H11: ='E1.1 Proposed Dist Rates '!E19 -> 15
C12: Block 1 (First 1,000 m3 per month) | F12: ='B1.1 Current Distribution Rates'!F19 -> 15.1677 | H12: ='E1.1 Proposed Dist Rates '!F19 -> 15.82119154
C13: Block 2 (Next 24,000 m3 per month) | F13: ='B1.1 Current Distribution Rates'!H19 -> 9.4826 | H13: ='E1.1 Proposed Dist Rates '!H19 -> 9.4826
C14: Block 3 (Over 25,000 m3 per month) | F14: ='B1.1 Current Distribution Rates'!I19 -> 6.1698 | H14: ='E1.1 Proposed Dist Rates '!I19 -> 6.1698
C15: System Gas Charge | F15: ='B1.1 Current Distribution Rates'!L19 -> 0.0363 | H15: ='E1.1 Proposed Dist Rates '!L20 -> 0.0363
C17: Rate Riders
C18: Shared Tax Changes 2014 | F18: ='C1.1 Current Rate Riders'!$E$19 -> -0.19
C19: Shared Tax Changes 2015 | H19: =ROUND('F1.3 Proposed Rate Riders'!$E$19,2) -> 0.24
C21: Average Seasonal Consumption
C22: Block 1 (First 1,000 m3 per month) | E22: 2831.2
C23: Block 2 (Next 24,000 m3 per month) | E23: 3379.8
C24: Block 3 (Over 25,000 m3 per month) | E24: 1.136868377e-13
E26: Metric | F26: Current Rate | H26: Proposed Rate | J26: Change $ | L26: Change %
C27: Customer | E27: 7 | F27: =F11*E27 -> 105 | H27: =H11*E27 -> 105 | J27: =H27-F27 -> 0 | L27: =IF(ISERROR(J27/F27),0,J27/F27) -> 0
C28: Block 1 (First 1,000 m3 per month) | E28: =E22 -> 2831.2 | F28: =F12*E28/100 -> 429.4279224 | H28: =H12*E28/100 -> 447.9295748 | J28: =H28-F28 -> 18.50165243 | L28: =IF(ISERROR(J28/F28),0,J28/F28) -> 0.04308441875
C29: Block 2 (Next 24,000 m3 per month) | E29: =E23 -> 3379.8 | F29: =F13*E29/100 -> 320.4929148 | H29: =H13*E29/100 -> 320.4929148 | J29: 0 | L29: =IF(ISERROR(J29/F29),0,J29/F29) -> 0
C30: Block 3 (Over 25,000 m3 per month) | E30: =E24 -> 1.136868377e-13 | F30: =F14*E30/100 -> 7.014250514e-15 | H30: =H14*E30/100 -> 7.014250514e-15 | J30: 0 | L30: 0
C31: System Gas Charge | E31: =SUM(E28:E29) -> 6211 | F31: =F15*E31/100 -> 2.254593 | H31: =H15*E31/100 -> 2.254593 | J31: 0 | L31: =IF(ISERROR(J31/F31),0,J31/F31) -> 0
C32: Total Delivery | F32: =SUM(F27:F31) -> 857.1754302 | H32: =SUM(H27:H31) -> 875.6770826 | J32: 18.50165243 | L32: =IF(ISERROR(J32/F32),0,J32/F32) -> 0.02158444092
C34: Rate Riders
C36: Rate Riders | E36: Metric | F36: Current Rate | H36: Proposed Rate | J36: Change $ | L36: Change %
C37: Shared Tax Changes 2014 | E37: 7 | F37: =F18*E37 -> -1.33 | H37: 0 | J37: =H37-F37 -> 1.33 | L37: =IF(ISERROR(J37/F37),0,J37/F37) -> -1
C38: Shared Tax Changes 2015 | E38: 7 | F38: 0 | H38: =H19*E38 -> 1.68 | J38: =H38-F38 -> 1.68 | L38: =IF(ISERROR(J38/F38),0,J38/F38) -> 0
C39: Total Rate Riders | F39: =SUM(F37:F38) -> -1.33 | H39: =SUM(H37:H38) -> 1.68 | J39: =SUM(J37:J38) -> 3.01 | L39: -2.263157895
C41: Total Bill Impact | F41: =SUM(F32,F39) -> 855.8454302 | H41: =SUM(H32,H39) -> 877.3570826 | J41: =SUM(J32,J39) -> 21.51165243 | L41: =IF(ISERROR(J41/F41),0,J41/F41) -> 0.02513497376
C44: Rate 2 - November to March | F44: Current Rate | H44: Proposed Rate
C46: Customer | F46: ='B1.1 Current Distribution Rates'!E20 -> 15 | H46: ='E1.1 Proposed Dist Rates '!E20 -> 15
C47: Block 1 (First 1,000 m3 per month) | F47: ='B1.1 Current Distribution Rates'!F20 -> 19.1187 | H47: ='E1.1 Proposed Dist Rates '!F20 -> 19.94241808
C48: Block 2 (Next 24,000 m3 per month) | F48: ='B1.1 Current Distribution Rates'!H20 -> 15.696 | H48: ='E1.1 Proposed Dist Rates '!H20 -> 15.696
C49: Block 3 (Over 25,000 m3 per month) | F49: ='B1.1 Current Distribution Rates'!I20 -> 15.2899 | H49: ='E1.1 Proposed Dist Rates '!I20 -> 15.2899
C50: System Gas Charge | F50: ='B1.1 Current Distribution Rates'!L20 -> 0.0363 | H50: ='E1.1 Proposed Dist Rates '!L20 -> 0.0363
C52: Rate Riders
C53: Shared Tax Changes 2014 | F53: ='C1.1 Current Rate Riders'!$E$20 -> -0.19
C54: Shared Tax Changes 2015 | H54: =ROUND('F1.3 Proposed Rate Riders'!$E$20,2) -> 0.24
C56: Average Seasonal Consumption
C57: Block 1 (First 1,000 m3 per month) | E57: 677.6
C58: Block 2 (Next 24,000 m3 per month) | E58: 0
C59: Block 3 (Over 25,000 m3 per month) | E59: 0
E61: Metric | F61: Current Rate | H61: Proposed Rate | J61: Change $ | L61: Change %
C62: Customer | E62: 5 | F62: =F46*E62 -> 75 | H62: =H46*E62 -> 75 | J62: =H62-F62 -> 0 | L62: =IF(ISERROR(J62/F62),0,J62/F62) -> 0
C63: Block 1 (First 1,000 m3 per month) | E63: =E57 -> 677.6 | F63: =F47*E63/100 -> 129.5483112 | H63: =H47*E63/100 -> 135.1298249 | J63: =H63-F63 -> 5.581513688 | L63: 0.04308441875
C64: Block 2 (Next 24,000 m3 per month) | E64: =E58 -> 0 | F64: =F48*E64/100 -> 0 | H64: =H48*E64/100 -> 0 | J64: 0 | L64: 0
C65: Block 3 (Over 25,000 m3 per month) | E65: =E59 -> 0 | F65: =F49*E65/100 -> 0 | H65: =H49*E65/100 -> 0 | J65: =H65-F65 -> 0 | L65: 0
C66: System Gas Charge | E66: =SUM(E63:E64) -> 677.6 | F66: =F50*E66/100 -> 0.2459688 | H66: =H50*E66/100 -> 0.2459688 | J66: 0 | L66: 0
C67: Total Delivery | F67: =SUM(F62:F66) -> 204.79428 | H67: =SUM(H62:H66) -> 210.3757937 | J67: 5.581513688 | L67: 0.02725424601
C69: Rate Riders
C71: Rate Riders | E71: Metric | F71: Current Rate | H71: Proposed Rate | J71: Change $ | L71: Change %
C72: Shared Tax Changes 2014 | E72: 5 | F72: =F53*E72 -> -0.95 | H72: 0 | J72: =H72-F72 -> 0.95 | L72: =IF(ISERROR(J72/F72),0,J72/F72) -> -1
C73: Shared Tax Changes 2015 | E73: 5 | F73: 0 | H73: =H54*E73 -> 1.2 | J73: =H73-F73 -> 1.2 | L73: =IF(ISERROR(J73/F73),0,J73/F73) -> 0
C74: Total Rate Riders | F74: =SUM(F72:F73) -> -0.95 | H74: =SUM(H72:H73) -> 1.2 | J74: =SUM(J72:J73) -> 2.15 | L74: -2.263157895
C76: Total Bill Impact | F76: =SUM(F67,F74) -> 203.84428 | H76: =SUM(H67,H74) -> 211.5757937 | J76: =SUM(J67,J74) -> 7.731513688 | L76: =IF(ISERROR(J76/F76),0,J76/F76) -> 0.03792852901
C79: Rate 2 - Annual | F79: Current Rate | H79: Proposed Rate
C81: Average Annual Consumption
C82: Block 1 (First 1,000 m3 per month) | E82: =E22+E57 -> 3508.8
C83: Block 2 (Next 24,000 m3 per month) | E83: =E23+E58 -> 3379.8
C84: Block 3 (Over 25,000 m3 per month) | E84: =E24+E59 -> 1.136868377e-13
E86: Metric | F86: Current Rate | H86: Proposed Rate | J86: Change $ | L86: Change %
C87: Customer | E87: =E27+E62 -> 12 | F87: =F27+F62 -> 180 | H87: =H27+H62 -> 180 | J87: =H87-F87 -> 0 | L87: =IF(ISERROR(J87/F87),0,J87/F87) -> 0
C88: Block 1 (First 1,000 m3 per month) | E88: =E82 -> 3508.8 | F88: =F28+F63 -> 558.9762336 | H88: =H28+H63 -> 583.0593997 | J88: =H88-F88 -> 24.08316612 | L88: 0.04308441875
C89: Block 2 (Next 24,000 m3 per month) | E89: =E83 -> 3379.8 | F89: =F29+F64 -> 320.4929148 | H89: =H29+H64 -> 320.4929148 | J89: 0 | L89: 0
C90: Block 3 (Over 25,000 m3 per month) | E90: =E84 -> 1.136868377e-13 | F90: =F30+F65 -> 7.014250514e-15 | H90: =H30+H65 -> 7.014250514e-15 | J90: =H90-F90 -> 0 | L90: 0
C91: System Gas Charge | E91: =SUM(E88:E89) -> 6888.6 | F91: =F31+F66 -> 2.5005618 | H91: =H31+H66 -> 2.5005618 | J91: 0 | L91: 0
C92: Total Delivery | F92: =SUM(F87:F91) -> 1061.96971 | H92: =SUM(H87:H91) -> 1086.052876 | J92: 24.08316612 | L92: 0.02267782771
C94: Rate Riders
C96: Rate Riders | E96: Metric | F96: Current Rate | H96: Proposed Rate | J96: Change $ | L96: Change %
C97: Shared Tax Changes 2014 | E97: =E37+E72 -> 12 | F97: =F37+F72 -> -2.28 | H97: =H37+H72 -> 0 | J97: =H97-F97 -> 2.28 | L97: =IF(ISERROR(J97/F97),1,J97/F97) -> -1
C98: Shared Tax Changes 2015 | E98: =E38+E73 -> 12 | F98: =F38+F73 -> 0 | H98: =H38+H73 -> 2.88 | J98: =H98-F98 -> 2.88 | L98: =IF(ISERROR(J98/F98),1,J98/F98) -> 1
C99: Total Rate Riders | F99: =SUM(F97:F98) -> -2.28 | H99: =SUM(H97:H98) -> 2.88 | J99: =SUM(J97:J98) -> 5.16 | L99: =IF(ISERROR(J99/F99),0,J99/F99) -> -2.263157895
C101: Total Bill Impact | F101: =SUM(F92,F99) -> 1059.68971 | H101: =SUM(H92,H99) -> 1088.932876 | J101: =SUM(J92,J99) -> 29.24316612 | L101: =IF(ISERROR(J101/F101),0,J101/F101) -> 0.02759597063
C106: Rate 2 - April to October
C107: Block 1 (First 1,000 m3 per month) | E107: 2831.2
C108: Block 2 (Next 24,000 m3 per month) | E108: 3379.8

Sheet G1.3 Rate 3 Bill Impact
C2: ='A1.1 Distributor Information'!C3 -> Name of LDC: Natural Resource Gas Limited
C3: ='A1.1 Distributor Information'!C4 -> OEB Application Number: EB-2015-0115
C10: Rate 3 Delivery Bill Impact
C15: Special Large Volume Contract Rate | F15: Current Rate | H15: Proposed Rate
C17: Customer | F17: ='B1.1 Current Distribution Rates'!E21 -> 150 | H17: ='E1.1 Proposed Dist Rates '!E21 -> 150
C18: Delivery - Firm | F18: ='B1.1 Current Distribution Rates'!J21 -> 3.9431 | H18: ='E1.1 Proposed Dist Rates '!J21 -> 4.035654275
C19: Demand - Firm | F19: ='B1.1 Current Distribution Rates'!K21 -> 29.0974 | H19: ='E1.1 Proposed Dist Rates '!K21 -> 29.0974
C20: System Gas Charge | F20: ='B1.1 Current Distribution Rates'!L21 -> 0.0363 | H20: ='E1.1 Proposed Dist Rates '!L21 -> 0.0363
C22: Rate Riders
C23: Shared Tax Changes 2014 | F23: ='C1.1 Current Rate Riders'!$E$21 -> -8.34
C24: Shared Tax Changes 2015 | H24: =ROUND('F1.3 Proposed Rate Riders'!$E$21,2) -> 10.53
C26: Average Annual Consumption
C27: Delivery - Firm | E27: 548824.77
C28: Demand - Firm | E28: 64233
E30: Metric | F30: Current Rate | H30: Proposed Rate | J30: Change $ | L30: Change %
C31: Customer | E31: 12 | F31: =F17*E31 -> 1800 | H31: =H17*E31 -> 1800 | J31: =H31-F31 -> 0 | L31: =IF(ISERROR(J31/F31),0,J31/F31) -> 0
C32: Delivery - Firm | E32: =E27 -> 548824.77 | F32: =F18*E32/100 -> 21640.70951 | H32: =H18*E32/100 -> 22148.67029 | J32: =H32-F32 -> 507.960789 | L32: =IF(ISERROR(J32/F32),0,J32/F32) -> 0.02347246466
C33: Demand - Firm | E33: =E28 -> 64233 | F33: =F19*E33/100 -> 18690.13294 | H33: =H19*E33/100 -> 18690.13294 | J33: 0 | L33: =IF(ISERROR(J33/F33),0,J33/F33) -> 0
C34: System Gas Charge | E34: =E27 -> 548824.77 | F34: =F20*E34/100 -> 199.2233915 | H34: =H20*E34/100 -> 199.2233915 | J34: 0 | L34: =IF(ISERROR(J34/F34),0,J34/F34) -> 0
C35: Total Delivery | F35: =SUM(F31:F34) -> 42330.06584 | H35: =SUM(H31:H34) -> 42838.02663 | J35: 507.960789 | L35: =IF(ISERROR(J35/F35),0,J35/F35) -> 0.01199999998
C37: Rate Riders
C39: Rate Riders | E39: Metric | F39: Current Rate | H39: Proposed Rate | J39: Change $ | L39: Change %
C40: Shared Tax Changes 2014 | E40: 12 | F40: =F23*E40 -> -100.08 | H40: 0 | J40: =H40-F40 -> 100.08 | L40: =IF(ISERROR(J40/F40),1,J40/F40) -> -1
C41: Shared Tax Changes 2015 | E41: 12 | F41: 0 | H41: =H24*E41 -> 126.36 | J41: =H41-F41 -> 126.36 | L41: =IF(ISERROR(J41/F41),1,J41/F41) -> 1
C42: Total Rate Riders | F42: =SUM(F40:F41) -> -100.08 | H42: =SUM(H40:H41) -> 126.36 | J42: =SUM(J40:J41) -> 226.44 | L42: =IF(ISERROR(J42/F42),0,J42/F42) -> -2.262589928
C44: Total Bill Impact | F44: =SUM(F35,F42) -> 42229.98584 | H44: =SUM(H35,H42) -> 42964.38663 | J44: =SUM(J35,J42) -> 734.400789 | L44: =IF(ISERROR(J44/F44),0,J44/F44) -> 0.01739050522

Sheet G1.4 Rate 4 Bill Impact
C2: ='A1.1 Distributor Information'!C3 -> Name of LDC: Natural Resource Gas Limited
C3: ='A1.1 Distributor Information'!C4 -> OEB Application Number: EB-2015-0115
C7: Rate 4 Delivery Bill Impact
C11: Rate 4 - April to December | F11: Current Rate | H11: Proposed Rate
C13: Customer | F13: ='B1.1 Current Distribution Rates'!E22 -> 15 | H13: ='E1.1 Proposed Dist Rates '!E22 -> 15
C14: Block 1 (First 1,000 m3 per month) | F14: ='B1.1 Current Distribution Rates'!F22 -> 15.4678 | H14: ='E1.1 Proposed Dist Rates '!F22 -> 15.81487179
C15: Block 2 (Over 1,000 m3 per month) | F15: ='B1.1 Current Distribution Rates'!G22 -> 10.5218 | H15: ='E1.1 Proposed Dist Rates '!G22 -> 10.5218
C16: System Gas Charge | F16: ='B1.1 Current Distribution Rates'!L19 -> 0.0363 | H16: ='E1.1 Proposed Dist Rates '!L22 -> 0.0363
C18: Rate Riders
C19: Shared Tax Changes 2014 | F19: ='C1.1 Current Rate Riders'!$E$22 -> -0.55
C20: Shared Tax Changes 2015 | H20: =ROUND('F1.3 Proposed Rate Riders'!$E$22,2) -> 0.69
C22: Average Seasonal Consumption
C23: Block 1 (First 1,000 m3 per month) | E23: 5579.73
C24: Block 2 (Over 1,000 m3 per month) | E24: 13417
E26: Metric | F26: Current Rate | H26: Proposed Rate | J26: Change $ | L26: Change %
C27: Customer | E27: 9 | F27: =F13*E27 -> 135 | H27: =H13*E27 -> 135 | J27: =H27-F27 -> 0 | L27: =IF(ISERROR(J27/F27),0,J27/F27) -> 0
C28: Block 1 (First 1,000 m3 per month) | E28: =E23 -> 5579.73 | F28: =F14*E28/100 -> 863.0614769 | H28: =H14*E28/100 -> 882.4271457 | J28: =H28-F28 -> 19.36566881 | L28: =IF(ISERROR(J28/F28),0,J28/F28) -> 0.02243834225
C29: Block 2 (Over 1,000 m3 per month) | E29: =E24 -> 13417 | F29: =F15*E29/100 -> 1411.709906 | H29: =H15*E29/100 -> 1411.709906 | J29: 0 | L29: =IF(ISERROR(J29/F29),0,J29/F29) -> 0
C30: System Gas Charge | E30: =SUM(E28:E29) -> 18996.73 | F30: =F16*E30/100 -> 6.89581299 | H30: =H16*E30/100 -> 6.89581299 | J30: 0 | L30: =IF(ISERROR(J30/F30),0,J30/F30) -> 0
C31: Total Delivery | F31: =SUM(F27:F30) -> 2416.667196 | H31: =SUM(H27:H30) -> 2436.032865 | J31: 19.36566881 | L31: =IF(ISERROR(J31/F31),0,J31/F31) -> 0.008013378441
C33: Rate Riders
C35: Rate Riders | E35: Metric | F35: Current Rate | H35: Proposed Rate | J35: Change $ | L35: Change %
C36: Shared Tax Changes 2014 | E36: 9 | F36: =F19*E36 -> -4.95 | H36: 0 | J36: =H36-F36 -> 4.95 | L36: =IF(ISERROR(J36/F36),1,J36/F36) -> -1
C37: Shared Tax Changes 2015 | E37: 9 | F37: 0 | H37: =H20*E37 -> 6.21 | J37: =H37-F37 -> 6.21 | L37: =IF(ISERROR(J37/F37),1,J37/F37) -> 1
C38: Total Rate Riders | F38: =SUM(F36:F37) -> -4.95 | H38: =SUM(H36:H37) -> 6.21 | J38: =SUM(J36:J37) -> 11.16 | L38: =IF(ISERROR(J38/F38),0,J38/F38) -> -2.254545455
C40: Total Bill Impact | F40: =SUM(F31,F38) -> 2411.717196 | H40: =SUM(H31,H38) -> 2442.242865 | J40: =SUM(J31,J38) -> 30.52566881 | L40: =IF(ISERROR(J40/F40),0,J40/F40) -> 0.01265723396
C43: Rate 4 - January to March | F43: Current Rate | H43: Proposed Rate
C45: Customer | F45: ='B1.1 Current Distribution Rates'!E23 -> 15 | H45: ='E1.1 Proposed Dist Rates '!E23 -> 15
C46: Block 1 (First 1,000 m3 per month) | F46: ='B1.1 Current Distribution Rates'!F23 -> 19.7327 | H46: ='E1.1 Proposed Dist Rates '!F23 -> 20.17546908
C47: Block 2 (Over 1,000 m3 per month) | F47: ='B1.1 Current Distribution Rates'!G23 -> 16.9052 | H47: ='E1.1 Proposed Dist Rates '!G23 -> 16.9052
C48: System Gas Charge | F48: ='B1.1 Current Distribution Rates'!L23 -> 0.0363 | H48: ='E1.1 Proposed Dist Rates '!L23 -> 0.0363
C50: Rate Riders
C51: Shared Tax Changes 2014 | F51: ='C1.1 Current Rate Riders'!$E$23 -> -0.55
C52: Shared Tax Changes 2015 | H52: =ROUND('F1.3 Proposed Rate Riders'!$E$23,2) -> 0.69
C54: Average Seasonal Consumption
C55: Block 1 (First 1,000 m3 per month) | E55: 753.84
C56: Block 2 (Over 1,000 m3 per month) | E56: 0
E58: Metric | F58: Current Rate | H58: Proposed Rate | J58: Change $ | L58: Change %
C59: Customer | E59: 3 | F59: =F45*E59 -> 45 | H59: =H45*E59 -> 45 | J59: =H59-F59 -> 0 | L59: =IF(ISERROR(J59/F59),0,J59/F59) -> 0
C60: Block 1 (First 1,000 m3 per month) | E60: =E55 -> 753.84 | F60: =F46*E60/100 -> 148.7529857 | H60: =H46*E60/100 -> 152.0907561 | J60: =H60-F60 -> 3.337770404 | L60: 0.02243834225
C61: Block 2 (Over 1,000 m3 per month) | E61: =E56 -> 0 | F61: =F47*E61/100 -> 0 | H61: =H47*E61/100 -> 0 | J61: 0 | L61: 0
C62: System Gas Charge | E62: =SUM(E60:E61) -> 753.84 | F62: =F48*E62/100 -> 0.27364392 | H62: =H48*E62/100 -> 0.27364392 | J62: 0 | L62: 0
C63: Total Delivery | F63: =SUM(F59:F62) -> 194.0266296 | H63: =SUM(H59:H62) -> 197.3644 | J63: 3.337770404 | L63: 0.01720264075
C65: Rate Riders
C67: Rate Riders | E67: Metric | F67: Current Rate | H67: Proposed Rate | J67: Change $ | L67: Change %
C68: Shared Tax Changes 2014 | E68: 3 | F68: =F51*E68 -> -1.65 | H68: 0 | J68: =H68-F68 -> 1.65 | L68: =IF(ISERROR(J68/F68),1,J68/F68) -> -1
C69: Shared Tax Changes 2015 | E69: 3 | F69: 0 | H69: =H52*E69 -> 2.07 | J69: =H69-F69 -> 2.07 | L69: =IF(ISERROR(J69/F69),1,J69/F69) -> 1
C70: Total Rate Riders | F70: =SUM(F68:F69) -> -1.65 | H70: =SUM(H68:H69) -> 2.07 | J70: =SUM(J68:J69) -> 3.72 | L70: =IF(ISERROR(J70/F70),0,J70/F70) -> -2.254545455
C72: Total Bill Impact | F72: =SUM(F63,F70) -> 192.3766296 | H72: =SUM(H63,H70) -> 199.4344 | J72: =SUM(J63,J70) -> 7.057770404 | L72: =IF(ISERROR(J72/F72),0,J72/F72) -> 0.03668725468
C75: Rate 4 - Annual | F75: Current Rate | H75: Proposed Rate
C77: Average Annual Consumption
C78: Block 1 (First 1,000 m3 per month) | E78: =E23+E55 -> 6333.57
C79: Block 2 (Over 1,000 m3 per month) | E79: =E24+E56 -> 13417
E81: Metric | F81: Current Rate | H81: Proposed Rate | J81: Change $ | L81: Change %
C82: Customer | E82: =E27+E59 -> 12 | F82: =F27+F59 -> 180 | H82: =H27+H59 -> 180 | J82: =H82-F82 -> 0 | L82: =IF(ISERROR(J82/F82),0,J82/F82) -> 0
C83: Block 1 (First 1,000 m3 per month) | E83: =E78 -> 6333.57 | F83: =F28+F60 -> 1011.814463 | H83: =H28+H60 -> 1034.517902 | J83: =H83-F83 -> 22.70343921 | L83: 0.02243834225
C84: Block 2 (Over 1,000 m3 per month) | E84: =E79 -> 13417 | F84: =F29+F61 -> 1411.709906 | H84: =H29+H61 -> 1411.709906 | J84: 0 | L84: 0
C85: System Gas Charge | E85: =SUM(E83:E84) -> 19750.57 | F85: =F30+F62 -> 7.16945691 | H85: =H30+H62 -> 7.16945691 | J85: 0 | L85: 0
C86: Total Delivery | F86: =SUM(F82:F85) -> 2610.693826 | H86: =SUM(H82:H85) -> 2633.397265 | J86: 22.70343921 | L86: 0.008696323938
C88: Rate Riders
C90: Rate Riders | E90: Metric | F90: Current Rate | H90: Proposed Rate | J90: Change $ | L90: Change %
C91: Shared Tax Changes 2014 | E91: =E68+E36 -> 12 | F91: =F68+F36 -> -6.6 | H91: =H68+H36 -> 0 | J91: =H91-F91 -> 6.6 | L91: =IF(ISERROR(J91/F91),1,J91/F91) -> -1
C92: Shared Tax Changes 2015 | E92: =E69+E37 -> 12 | F92: =F69+F37 -> 0 | H92: =H69+H37 -> 8.28 | J92: =H92-F92 -> 8.28 | L92: =IF(ISERROR(J92/F92),1,J92/F92) -> 1
C93: Total Rate Riders | F93: =SUM(F91:F92) -> -6.6 | H93: =SUM(H91:H92) -> 8.28 | J93: =SUM(J91:J92) -> 14.88 | L93: =IF(ISERROR(J93/F93),0,J93/F93) -> -2.254545455
C95: Total Bill Impact | F95: =SUM(F86,F93) -> 2604.093826 | H95: =SUM(H86,H93) -> 2641.677265 | J95: =SUM(J86,J93) -> 37.58343921 | L95: =IF(ISERROR(J95/F95),0,J95/F95) -> 0.01443244435

Sheet G1.5 Rate 5 Bill Impact
C2: ='A1.1 Distributor Information'!C3 -> Name of LDC: Natural Resource Gas Limited
C3: ='A1.1 Distributor Information'!C4 -> OEB Application Number: EB-2015-0115
C10: Rate 5 Delivery Bill Impact
C15: Interruptible Peaking Contract Rate | F15: Current Rate | H15: Proposed Rate
C17: Customer | F17: ='B1.1 Current Distribution Rates'!E24 -> 150 | H17: ='E1.1 Proposed Dist Rates '!E24 -> 150
C18: Delivery - Firm | F18: ='B1.1 Current Distribution Rates'!J24 -> 7.1024 | H18: ='E1.1 Proposed Dist Rates '!J24 -> 7.199466888
C19: System Gas Charge | F19: ='B1.1 Current Distribution Rates'!L24 -> 0.0363 | H19: ='E1.1 Proposed Dist Rates '!L24 -> 0.0363
C21: Rate Riders
C22: Shared Tax Changes 2014 | F22: ='C1.1 Current Rate Riders'!$E$24 -> -3.02
C23: Shared Tax Changes 2015 | H23: =ROUND('F1.3 Proposed Rate Riders'!$E$24,2) -> 3.81
C25: Average Annual Consumption
C26: Delivery - Firm | E26: 189432.34
E28: Metric | F28: Current Rate | H28: Proposed Rate | J28: Change $ | L28: Change %
C29: Customer | E29: 12 | F29: =F17*E29 -> 1800 | H29: =H17*E29 -> 1800 | J29: =H29-F29 -> 0 | L29: =IF(ISERROR(J29/F29),0,J29/F29) -> 0
C30: Delivery - Firm | E30: =E26 -> 189432.34 | F30: =F18*E30/100 -> 13454.24252 | H30: =H18*E30/100 -> 13638.11859 | J30: =H30-F30 -> 183.8760772 | L30: =IF(ISERROR(J30/F30),0,J30/F30) -> 0.01366677292
C31: System Gas Charge | E31: =E26 -> 189432.34 | F31: =F19*E31/100 -> 68.76393942 | H31: =H19*E31/100 -> 68.76393942 | J31: 0 | L31: =IF(ISERROR(J31/F31),0,J31/F31) -> 0
C32: Total Delivery | F32: =SUM(F29:F31) -> 15323.00646 | H32: =SUM(H29:H31) -> 15506.88253 | J32: 183.8760772 | L32: =IF(ISERROR(J32/F32),0,J32/F32) -> 0.01199999999
C34: Rate Riders
C36: Rate Riders | E36: Metric | F36: Current Rate | H36: Proposed Rate | J36: Change $ | L36: Change %
C37: Shared Tax Changes 2014 | E37: 12 | F37: =F22*E37 -> -36.24 | H37: 0 | J37: =H37-F37 -> 36.24 | L37: =IF(ISERROR(J37/F37),1,J37/F37) -> -1
C38: Shared Tax Changes 2015 | E38: 12 | F38: 0 | H38: =H23*E38 -> 45.72 | J38: =H38-F38 -> 45.72 | L38: =IF(ISERROR(J38/F38),1,J38/F38) -> 1
C39: Total Rate Riders | F39: =SUM(F37:F38) -> -36.24 | H39: =SUM(H37:H38) -> 45.72 | J39: =SUM(J37:J38) -> 81.96 | L39: =IF(ISERROR(J39/F39),0,J39/F39) -> -2.261589404
C41: Total Bill Impact | F41: =SUM(F32,F39) -> 15286.76646 | H41: =SUM(H32,H39) -> 15552.60253 | J41: =SUM(J32,J39) -> 265.8360772 | L41: =IF(ISERROR(J41/F41),0,J41/F41) -> 0.01738994823

Sheet G1.6 Rate 6 Bill Impact
C2: ='A1.1 Distributor Information'!C3 -> Name of LDC: Natural Resource Gas Limited
C3: ='A1.1 Distributor Information'!C4 -> OEB Application Number: EB-2015-0115
C10: Rate 6 Delivery Bill Impact
C15: Special Large Volume Contract Rate | F15: Current Rate | H15: Proposed Rate
C17: Customer | F17: ='B1.1 Current Distribution Rates'!E25 -> 150 | H17: ='E1.1 Proposed Dist Rates '!E25 -> 150
C18: Delivery - Firm | F18: ='B1.1 Current Distribution Rates'!J25 -> 3.8432 | H18: ='E1.1 Proposed Dist Rates '!J25 -> 3.889383038
C19: Demand - Firm | F19: ='B1.1 Current Distribution Rates'!K25 -> 18.6158 | H19: ='E1.1 Proposed Dist Rates '!K25 -> 18.8391896
C21: Rate Riders
C22: Shared Tax Changes 2014 | F22: ='C1.1 Current Rate Riders'!$E$25 -> -301.13
C23: Shared Tax Changes 2015 | H23: =ROUND('F1.3 Proposed Rate Riders'!$E$25,2) -> 380.13
C25: Average Annual Consumption
C26: Delivery - Firm | E26: 33416816
C27: Demand - Firm | E27: 1297416
E29: Metric | F29: Current Rate | H29: Proposed Rate | J29: Change $ | L29: Change %
C30: Customer | E30: 12 | F30: =F17*E30 -> 1800 | H30: =H17*E30 -> 1800 | J30: =H30-F30 -> 0 | L30: =IF(ISERROR(J30/F30),0,J30/F30) -> 0
C31: Delivery - Firm | E31: =E26 -> 33416816 | F31: =F18*E31/100 -> 1284275.073 | H31: =H18*E31/100 -> 1299707.973 | J31: =H31-F31 -> 15432.90087 | L31: =IF(ISERROR(J31/F31),0,J31/F31) -> 0.01201681883
C32: Demand - Firm | E32: =E27 -> 1297416 | F32: =F19*E32/100 -> 241524.3677 | H32: =H19*E32/100 -> 244422.6601 | J32: 2898.292413 | L32: =IF(ISERROR(J32/F32),0,J32/F32) -> 0.012
C33: Total Delivery | F33: =SUM(F30:F32) -> 1527599.44 | H33: =SUM(H30:H32) -> 1545930.634 | J33: 18331.19328 | L33: =IF(ISERROR(J33/F33),0,J33/F33) -> 0.012
C35: Rate Riders
C37: Rate Riders | E37: Metric | F37: Current Rate | H37: Proposed Rate | J37: Change $ | L37: Change %
C38: Shared Tax Changes 2014 | E38: 12 | F38: =F22*E38 -> -3613.56 | H38: 0 | J38: =H38-F38 -> 3613.56 | L38: =IF(ISERROR(J38/F38),1,J38/F38) -> -1
C39: Shared Tax Changes 2015 | E39: 12 | F39: 0 | H39: =H23*E39 -> 4561.56 | J39: =H39-F39 -> 4561.56 | L39: =IF(ISERROR(J39/F39),1,J39/F39) -> 1
C40: Total Rate Riders | F40: =SUM(F38:F39) -> -3613.56 | H40: =SUM(H38:H39) -> 4561.56 | J40: =SUM(J38:J39) -> 8175.12 | L40: =IF(ISERROR(J40/F40),0,J40/F40) -> -2.262345167
C42: Total Bill Impact | F42: =SUM(F33,F40) -> 1523985.88 | H42: =SUM(H33,H40) -> 1550492.194 | J42: =SUM(J33,J40) -> 26506.31328 | L42: =IF(ISERROR(J42/F42),0,J42/F42) -> 0.01739275516

Sheet G1.7 Summary of Bill Impacts
C2: ='A1.1 Distributor Information'!C3 -> Name of LDC: Natural Resource Gas Limited
C3: ='A1.1 Distributor Information'!C4 -> OEB Application Number: EB-2015-0115
C5: Summary of Bill Impacts
C7: Rate Class | D7: Fixed | E7: Volumetric | F7: Rate Rider | G7: Change $ | H7: Change %
C9: Rate 1 - Residential | D9: ='G1.1 Rate 1 Bill Impact'!J26 -> 0 | E9: =SUM('G1.1 Rate 1 Bill Impact'!J27:J29) -> 5.755882505 | F9: =SUM('G1.1 Rate 1 Bill Impact'!J37) -> 2.88 | G9: ='G1.1 Rate 1 Bill Impact'!J39 -> 8.635882505 | H9: ='G1.1 Rate 1 Bill Impact'!L39 -> 0.01796885323
C10: Rate 1 - Commercial | D10: ='G1.1 Rate 1 Bill Impact'!J57 -> 0 | E10: =SUM('G1.1 Rate 1 Bill Impact'!J58:J60) -> 19.63486591 | F10: ='G1.1 Rate 1 Bill Impact'!J68 -> 2.88 | G10: ='G1.1 Rate 1 Bill Impact'!J70 -> 22.51486591 | H10: ='G1.1 Rate 1 Bill Impact'!L70 -> 0.01542393103
C11: Rate 1 - Industrial | D11: ='G1.1 Rate 1 Bill Impact'!J89 -> 0 | E11: =SUM('G1.1 Rate 1 Bill Impact'!J90:J92) -> 23.35757485 | F11: ='G1.1 Rate 1 Bill Impact'!J100 -> 2.88 | G11: ='G1.1 Rate 1 Bill Impact'!J102 -> 26.23757485 | H11: ='G1.1 Rate 1 Bill Impact'!L102 -> 0.01409047159
C13: ='G1.2 Rate 2 Bill Impact'!C9 -> Rate 2 - April to October | D13: ='G1.2 Rate 2 Bill Impact'!J27 -> 0 | E13: ='G1.2 Rate 2 Bill Impact'!J32-'G1.7 Summary of Bill Impacts'!D13 -> 18.50165243 | F13: ='G1.2 Rate 2 Bill Impact'!J39 -> 3.01 | G13: =SUM(D13:F13) -> 21.51165243 | H13: ='G1.2 Rate 2 Bill Impact'!L41 -> 0.02513497376
C14: ='G1.2 Rate 2 Bill Impact'!C44 -> Rate 2 - November to March | D14: ='G1.2 Rate 2 Bill Impact'!J62 -> 0 | E14: ='G1.2 Rate 2 Bill Impact'!J67-'G1.7 Summary of Bill Impacts'!D14 -> 5.581513688 | F14: ='G1.2 Rate 2 Bill Impact'!J74 -> 2.15 | G14: =SUM(D14:F14) -> 7.731513688 | H14: ='G1.2 Rate 2 Bill Impact'!L76 -> 0.03792852901
C15: ='G1.2 Rate 2 Bill Impact'!C79 -> Rate 2 - Annual | D15: ='G1.2 Rate 2 Bill Impact'!J87 -> 0 | E15: ='G1.2 Rate 2 Bill Impact'!J92-'G1.7 Summary of Bill Impacts'!D15 -> 24.08316612 | F15: ='G1.2 Rate 2 Bill Impact'!J99 -> 5.16 | G15: =SUM(D15:F15) -> 29.24316612 | H15: ='G1.2 Rate 2 Bill Impact'!L101 -> 0.02759597063
C17: ="Rate 3 - "& 'G1.3 Rate 3 Bill Impact'!C15 -> Rate 3 - Special Large Volume Contract Rate | D17: ='G1.3 Rate 3 Bill Impact'!J31 -> 0 | E17: ='G1.3 Rate 3 Bill Impact'!J35-'G1.7 Summary of Bill Impacts'!D17 -> 507.960789 | F17: ='G1.3 Rate 3 Bill Impact'!J42 -> 226.44 | G17: =SUM(D17:F17) -> 734.400789 | H17: ='G1.3 Rate 3 Bill Impact'!L44 -> 0.01739050522
C19: ='G1.4 Rate 4 Bill Impact'!C11 -> Rate 4 - April to December | D19: ='G1.4 Rate 4 Bill Impact'!J27 -> 0 | E19: ='G1.4 Rate 4 Bill Impact'!J31-'G1.7 Summary of Bill Impacts'!D19 -> 19.36566881 | F19: ='G1.4 Rate 4 Bill Impact'!J38 -> 11.16 | G19: =SUM(D19:F19) -> 30.52566881 | H19: ='G1.4 Rate 4 Bill Impact'!L40 -> 0.01265723396
C20: ='G1.4 Rate 4 Bill Impact'!C43 -> Rate 4 - January to March | D20: ='G1.4 Rate 4 Bill Impact'!J59 -> 0 | E20: ='G1.4 Rate 4 Bill Impact'!J63-'G1.7 Summary of Bill Impacts'!D20 -> 3.337770404 | F20: ='G1.4 Rate 4 Bill Impact'!J70 -> 3.72 | G20: =SUM(D20:F20) -> 7.057770404 | H20: ='G1.4 Rate 4 Bill Impact'!L72 -> 0.03668725468
C21: ='G1.4 Rate 4 Bill Impact'!C75 -> Rate 4 - Annual | D21: ='G1.4 Rate 4 Bill Impact'!J82 -> 0 | E21: ='G1.4 Rate 4 Bill Impact'!J86-'G1.7 Summary of Bill Impacts'!D21 -> 22.70343921 | F21: ='G1.4 Rate 4 Bill Impact'!J93 -> 14.88 | G21: =SUM(D21:F21) -> 37.58343921 | H21: ='G1.4 Rate 4 Bill Impact'!L95 -> 0.01443244435
C23: ="Rate 5 - " &'G1.5 Rate 5 Bill Impact'!C15 -> Rate 5 - Interruptible Peaking Contract Rate | D23: ='G1.5 Rate 5 Bill Impact'!J29 -> 0 | E23: ='G1.5 Rate 5 Bill Impact'!J32-'G1.7 Summary of Bill Impacts'!D23 -> 183.8760772 | F23: ='G1.5 Rate 5 Bill Impact'!J39 -> 81.96 | G23: =SUM(D23:F23) -> 265.8360772 | H23: ='G1.5 Rate 5 Bill Impact'!L41 -> 0.01738994823
C25: ="Rate 6 - " &'G1.6 Rate 6 Bill Impact'!C15 -> Rate 6 - Special Large Volume Contract Rate | D25: ='G1.6 Rate 6 Bill Impact'!J30 -> 0 | E25: ='G1.6 Rate 6 Bill Impact'!J33-'G1.7 Summary of Bill Impacts'!D25 -> 18331.19328 | F25: ='G1.6 Rate 6 Bill Impact'!J40 -> 8175.12 | G25: =SUM(D25:F25) -> 26506.31328 | H25: ='G1.6 Rate 6 Bill Impact'!L42 -> 0.01739275516
